Workbook

Sheet SCHEDULE MJL-D1
A1: AMEREN MISSOURI
A2: ORIGINAL COST OF ELECTRIC PLANT
A3: ="BY FUNCTIONAL CLASSIFICATION "&'SCHEDULE MJL-D3'!A3:G3 -> BY FUNCTIONAL CLASSIFICATION FOR THE TWELVE MONTHS ENDED DECEMBER 31, 2020
A4: ($000)
E7: TOTALS | G7: PRO FORMA
E8: PER | F8: PRO FORMA | G8: ELECTRIC
A9: LINE | C9: FUNCTIONAL CLASSIFICATION | E9: BOOKS | F9: ADJUSTMENTS | G9: TOTALS
C10: (A) | E10: (B) | F10: (C) | G10: (D)
C11: INTANGIBLE PLANT
A12: 1 | C12: FRANCHISES | E12: 100173 | F12: 0 | G12: =SUM(E12:F12) -> 100173
A13: =1+A12 -> 2 | C13: CALLAWAY LIFE EXTENSION DEFERRAL | E13: 2812 | F13: 0 | G13: =SUM(E13:F13) -> 2812
A14: 3 | C14: MISC INTANGIBLE PLANT | E14: 421781 | F14: 28632 | G14: =SUM(E14:F14) -> 450413
A15: =1+A14 -> 4 | C15: TOTAL INTANGIBLE PLANT | E15: =SUM(E12:E14) -> 524766 | F15: =SUM(F12:F14) -> 28632 | G15: =SUM(G12:G14) -> 553398
C17: PRODUCTION PLANT
A18: =1+A15 -> 5 | C18: NUCLEAR | E18: 3516837 | F18: -72980 | G18: =SUM(E18:F18) -> 3443857
A19: =1+A18 -> 6 | C19: CALLAWAY POST OPERATIONAL | E19: 116731 | F19: 0 | G19: 116731
A20: =1+A19 -> 7 | C20: STEAM | E20: 5052598 | F20: -648805 | G20: 4403793
A21: =1+A20 -> 8 | C21: HYDRAULIC | E21: 575812 | F21: 50030 | G21: 625842
A22: =1+A21 -> 9 | C22: WIND | E22: 649963 | F22: 474264 | G22: 1124227
A23: 10 | C23: OTHER | E23: 1287120 | F23: 8574 | G23: 1295694
A24: 11 | C24: TOTAL PRODUCTION PLANT | E24: =SUM(E18:E23) -> 11199061 | F24: =SUM(F18:F23) -> -188917 | G24: =SUM(G18:G23) -> 11010144
A26: =1+A24 -> 12 | C26: TRANSMISSION PLANT | E26: 1482524 | F26: 71422 | G26: =SUM(E26:F26) -> 1553946
A28: =+A26+1 -> 13 | C28: DISTRIBUTION PLANT | E28: 6783417 | F28: 406468 | G28: =SUM(E28:F28) -> 7189885
A30: =1+A28 -> 14 | C30: GENERAL PLANT | E30: 852175 | F30: 73714 | G30: =SUM(E30:F30) -> 925889
A32: =1+A30 -> 15 | C32: INCENTIVE COMPENSATION CAPITALIZED | E32: 0 | F32: -48056 | G32: =SUM(E32:F32) -> -48056
A34: =1+A32 -> 16 | C34: TOTAL PLANT IN SERVICE | E34: =E15+SUM(E24:E32) -> 20841943 | F34: =F15+SUM(F24:F32) -> 343263 | G34: =G15+SUM(G24:G32) -> 21185206
C38: PRO FORMA ADJUSTMENTS
A39: =1+A34 -> 17 | B39: -1 | C39: Eliminate Plant balances related to FAS 143 Asset Retirement Obligation and ASC 842 Leases
A40: =1+A39 -> 18 | D40: NUCLEAR | F40: -101675
A41: =1+A40 -> 19 | D41: STEAM | F41: -184772
A42: =1+A41 -> 20 | D42: WIND | F42: -35998
A43: 21 | D43: DISTRIBUTION | F43: 0
A44: =1+A43 -> 22 | D44: GENERAL | F44: -6089
A45: =1+A44 -> 23 | D45: TOTAL | G45: =SUM(F40:F44) -> -328534
A47: =1+A45 -> 24 | B47: -2 | C47: Plant Additions for the true-up period
A48: =1+A47 -> 25 | D48: INTANGIBLE FRANCHISES | F48: 0
A49: 26 | D49: OTHER INTANGIBLE PLANT | F49: 47922
A50: 27 | D50: NUCLEAR | F50: 28695
A51: 28 | D51: STEAM | F51: 85834
A52: 29 | D52: HYDRAULIC | F52: 50030
A53: 30 | D53: WIND | F53: 510261
A54: 31 | D54: OTHER | F54: 8574
A55: 32 | D55: TRANSMISSION | F55: 71422
A56: 33 | D56: DISTRIBUTION | F56: 406468
A57: 34 | D57: GENERAL | F57: 94264
A58: 35 | D58: TOTAL | G58: =SUM(F48:F57) -> 1303470
A60: =A58+1 -> 36 | B60: (3) | C60: Reduce a portion of the amounts recoverable relating to the Meramec Energy Center due to its upcoming plant retirement. This adjustment reflects the recovery of remaining amounts over a five year period. Other components of this adjustment will be referred to as the Meramec Energy Center adjustment throughout the remainder of schedules MJL-D2 through MJL-D17. | G60: -549866
A65: =A60+1 -> 37 | B65: -4 | C65: Eliminate portions of plant in service for multi-use general assets which are applicable to gas operations. For convenience, such assets are recorded as electric plant but are commonly used for both electric and gas.
A66: =1+A65 -> 38
A67: =1+A66 -> 39
A68: =1+A67 -> 40 | D68: GENERAL | G68: -33751
A70: =1+A68 -> 41 | B70: -5 | C70: Reduce Plant-in-Service for disallowed capital incentive compensation
A71: =1+A70 -> 42 | D71: GENERAL | G71: -48056
A73: =1+A71 -> 43 | D73: TOTAL PRO FORMA ADJUSTMENTS | G73: =SUM(G40:G71) -> 343263

Sheet SCHEDULE MJL-D2
A1: AMEREN MISSOURI
A2: TOTAL ELECTRIC RESERVES FOR DEPRECIATION AND AMORTIZATION
A3: =+'SCHEDULE MJL-D1'!A3:G3 -> BY FUNCTIONAL CLASSIFICATION FOR THE TWELVE MONTHS ENDED DECEMBER 31, 2020
A4: ($000)
E7: TOTALS | G7: PRO FORMA
E8: PER | F8: PRO FORMA | G8: ELECTRIC
A9: LINE | C9: FUNCTIONAL CLASSIFICATION | E9: BOOKS | F9: ADJUSTMENTS | G9: TOTALS
C10: (A) | E10: (B) | F10: (C) | G10: (D)
C11: INTANGIBLE PLANT
A12: 1 | C12: FRANCHISES | E12: 26107 | F12: 3195 | G12: =E12+F12 -> 29302
A13: =1+A12 -> 2 | C13: CALLAWAY LIFE EXTENSION DEFERRAL | E13: 339 | F13: 78 | G13: =E13+F13 -> 417
A14: 3 | C14: MISC INTANGIBLE PLANT | E14: 189239 | F14: 38865 | G14: =E14+F14 -> 228104
A15: =1+A14 -> 4 | C15: TOTAL INTANGIBLE PLANT | E15: =SUM(E12:E14) -> 215685 | F15: =SUM(F12:F14) -> 42138 | G15: =E15+F15 -> 257823
C17: PRODUCTION PLANT
A18: =1+A15 -> 5 | C18: NUCLEAR | E18: 1728316 | F18: 72671 | G18: 1800987
A19: =1+A18 -> 6 | C19: CALLAWAY POST OPERATIONAL | E19: 102596 | F19: 2766 | G19: =E19+F19 -> 105362
A20: =1+A19 -> 7 | C20: STEAM | E20: 2250914 | F20: -468885 | G20: 1782029
A21: =1+A20 -> 8 | C21: HYDRAULIC | E21: 132225 | F21: 9971 | G21: 142196
A22: =1+A21 -> 9 | C22: WIND | E22: 947 | F22: 24108 | G22: 25055
A23: 10 | C23: OTHER | E23: 719318 | F23: 21890 | G23: 741208
A24: =1+A23 -> 11 | C24: TOTAL PRODUCTION PLANT | E24: =SUM(E18:E23) -> 4934316 | F24: =SUM(F18:F23) -> -337479 | G24: 4596837
A26: =1+A24 -> 12 | C26: TRANSMISSION PLANT | E26: 416618 | F26: 30014 | G26: 446632
A28: =1+A26 -> 13 | C28: DISTRIBUTION PLANT | E28: 3069989 | F28: 155285 | G28: 3225274
A30: =1+A28 -> 14 | C30: GENERAL PLANT | E30: 262032 | F30: 31969 | G30: 294001
A32: =1+A30 -> 15 | C32: INCENTIVE COMPENSATION CAPITALIZED | E32: 0 | F32: -14612 | G32: =E32+F32 -> -14612
A34: =1+A32 -> 16 | C34: TOTAL DEPRC. & AMORT RESERVE | E34: =E15+E24+E26+E28+E30+E32 -> 8898640 | F34: =F15+F24+F26+F28+F30+F32 -> -92685 | G34: =G15+G24+G26+G28+G30+G32 -> 8805955
C36: PRO FORMA ADJUSTMENTS
A37: =1+A34 -> 17 | B37: -1 | C37: Eliminate Reserve balances related to FAS 143 Asset Retirement Obligation and ASC 842 Leases
A38: =1+A37 -> 18 | D38: NUCLEAR | F38: 12639
A39: =1+A38 -> 19 | D39: STEAM | F39: -111817
A40: =1+A39 -> 20 | D40: DISTRIBUTION | F40: 0
A41: =1+A40 -> 21 | D41: GENERAL | F41: -3052
A42: =1+A41 -> 22 | D42: TOTAL | G42: =SUM(F38:F41) -> -102230
A44: =1+A42 -> 23 | B44: -2 | C44: Reserve Balance at December 31, 2020 adjusted to reflect Reserve Balance at September 30, 2021 .
A45: =1+A44 -> 24
A46: =1+A45 -> 25 | D46: INTANGIBLE FRANCHISES | F46: 3195
A47: =1+A46 -> 26 | D47: CALLAWAY LIFE EXTENSION DEFERRAL | F47: 78
A48: =1+A47 -> 27 | D48: MISC INTANGIBLE PLANT | F48: 41714
A49: =A48+1 -> 28 | D49: NUCLEAR | F49: 59762
A50: =A49+1 -> 29 | D50: CALLAWAY POST OPERATIONAL | F50: 2766
A51: =1+A50 -> 30 | D51: STEAM | F51: 129499
A52: 31 | D52: HYDRAULIC | F52: 9489
A53: 32 | D53: WIND | F53: 17009
A54: 33 | D54: OTHER | F54: 21818
A55: 34 | D55: TRANSMISSION | F55: 29374
A56: 35 | D56: DISTRIBUTION | F56: 150802
A57: 36 | D57: GENERAL | F57: 37645
A58: 37 | D58: TOTAL | G58: =SUM(F46:F57) -> 503151
A60: =1+A58 -> 38 | B60: -3 | C60: Adjustment to depreciation reserve for the additions to plant in service for the true-up period of January 1, 2021 through September 31, 2021.
A61: =1+A60 -> 39
A62: =1+A61 -> 40 | D62: INTANGIBLE FRANCHISES | F62: 0
A63: =1+A62 -> 41 | D63: MISC INTANGIBLE PLANT | F63: 3471
A64: =1+A63 -> 42 | D64: NUCLEAR | F64: 270
A65: =1+A64 -> 43 | D65: STEAM | F65: 1165
A66: 44 | D66: HYDRAULIC | F66: 482
A67: 45 | D67: WIND | F67: 7099
A68: 46 | D68: OTHER | F68: 72
A69: 47 | D69: TRANSMISSION | F69: 640
A70: 48 | D70: DISTRIBUTION | F70: 4483
A71: 49 | D71: GENERAL | F71: 1687
A72: 50 | D72: TOTAL | G72: =SUM(F62:F71) -> 19369
A74: =1+A72 -> 51 | B74: (4) | C74: Meramec Energy Center adjustment. | G74: -487732
A76: =1+A74 -> 52 | B76: -5 | C76: Eliminate portions of plant in service for multi use general assets which are applicable to gas operations. For convenience, such assets are recorded as electric plant but are commonly used for both electric and gas
A77: =1+A76 -> 53
A78: =1+A77 -> 54
A79: =1+A78 -> 55 | D79: GENERAL | G79: -10631
A81: =1+A79 -> 56 | B81: -6 | C81: Reserve Balance adjustment for disallowed Incentive Compensation capitalized
A82: =1+A81 -> 57 | D82: GENERAL | G82: -14612
A84: =1+A82 -> 58 | D84: TOTAL PRO FORMA ADJUSTMENTS | G84: =SUM(G37:G82) -> -92685

Sheet SCHEDULE MJL-D3
A1: AMEREN MISSOURI
A2: AVERAGE FUEL AND MATERIALS & SUPPLIES INVENTORIES
A3: FOR THE TWELVE MONTHS ENDED DECEMBER 31, 2020
A4: ($000)
D6: TOTALS | F6: PRO FORMA
D7: PER | E7: PRO FORMA | F7: ELECTRIC
A8: LINE | C8: DESCRIPTION | D8: BOOKS | E8: ADJUSTMENTS | F8: TOTALS
C9: (A) | D9: (B) | E9: (C) | F9: (D)
A11: 1 | C11: AVERAGE NUCLEAR FUEL | D11: 131681 | E11: 0 | F11: =D11+E11 -> 131681
C13: AVERAGE FOSSIL FUEL:
A14: =1+A11 -> 2 | C14: COAL | D14: 120927 | E14: -4180 | F14: =D14+E14 -> 116747
A15: =1+A14 -> 3 | C15: OIL | D15: 3112 | E15: 0 | F15: =D15+E15 -> 3112
A16: =1+A15 -> 4 | C16: STORED GAS FOR CTG'S | D16: 1154 | E16: 0 | F16: =D16+E16 -> 1154
A17: =1+A16 -> 5 | C17: TOTAL FOSSIL FUEL | D17: =SUM(D14:D16) -> 125193 | E17: =SUM(E14:E16) -> -4180 | F17: =D17+E17 -> 121013
A19: =1+A17 -> 6 | C19: EMISSION ALLOWANCES AND RECS | D19: 1275 | E19: 0 | F19: =D19+E19 -> 1275
A21: =1+A19 -> 7 | C21: GENERAL MATERIALS AND SUPPLIES | D21: 265496 | E21: -10328 | F21: =D21+E21 -> 255168
A23: =1+A21 -> 8 | C23: TOTAL | D23: =D11+D17+D19+D21 -> 523645 | E23: =E11+E17+E19+E21 -> -14508 | F23: =F11+F17+F19+F21 -> 509137
C26: PRO FORMA ADJUSTMENT
A27: =1+A23 -> 9 | B27: -1 | C27: Adjust Coal Supply to reflect 13 month average inventory levels priced at the January 2021 coal prices. | F27: 509
A29: =1+A27 -> 10 | B29: (2) | C29: Meramec Energy Center adjustment. | F29: -12813
A31: =1+A29 -> 11 | B31: (3) | C31: Eliminate portions of average fuel and general materials and supplies which are applicable to gas
A32: =1+A31 -> 12 | C32: operations. | F32: -2204
A34: =1+A32 -> 13 | C34: TOTAL PRO FORMA ADJUSTMENTS | F34: =SUM(F27:F33) -> -14508

Sheet SCHEDULE MJL-D4
B1: AMEREN MISSOURI
B2: AVERAGE PREPAYMENTS
B3: =+'SCHEDULE MJL-D3'!A3 -> FOR THE TWELVE MONTHS ENDED DECEMBER 31, 2020
B4: ($000)
E6: TOTALS | G6: PRO FORMA
E7: PER | F7: PRO FORMA | G7: ELECTRIC
B8: LINE | D8: DESCRIPTION | E8: BOOKS(1) | F8: ADJUSTMENTS | G8: TOTALS
D9: (A) | E9: (B) | F9: (C) | G9: (D)
B11: 1 | D11: RENTS (3) | E11: 39 | F11: -1 | G11: =E11+F11 -> 38
B12: =1+B11 -> 2 | D12: INSURANCE - DIRECT (2) | E12: 9686 | F12: -620 | G12: 9066
B13: =1+B12 -> 3 | D13: M/A COMM RADIO SYS SRVC AGREEMENT (3) | E13: 0 | F13: 0 | G13: 0
B14: 4 | D14: MEDICAL AND DENTAL VEBA (3) | E14: 4372 | F14: -105 | G14: 4267
B15: 5 | D15: IMAGING SOFTWARE (2) | E15: 82 | F15: 0 | G15: 82
B16: =1+B15 -> 6 | D16: OPTIV GIGAMON (3) | E16: 5 | F16: 0 | G16: =E16+F16 -> 5
B17: =1+B16 -> 7 | D17: CRM SALESFORCE SUBSCRIPTION (3) | E17: 36 | F17: -1 | G17: =E17+F17 -> 35
B18: =1+B17 -> 8 | D18: KANSAS CITY POWER & LIGHT (2) | E18: 3111 | F18: 0 | G18: =E18+F18 -> 3111
B19: 9 | D19: PALO ALTO ENTERPRISE (3) | E19: 12 | F19: 0 | G19: 12
B20: 10 | D20: LOW INCOME WEATHERIZATION - DIRECT (2) | E20: 132 | F20: -29 | G20: =E20+F20 -> 103
B22: =1+B20 -> 11 | D22: TOTAL AVERAGE PREPAYMENTS | E22: =SUM(E11:E20) -> 17475 | F22: =SUM(F11:F20) -> -756 | G22: =SUM(G11:G20) -> 16719
B24: =1+B22 -> 12 | C24: -1 | D24: Reflects 13 month average
B25: =1+B24 -> 13 | C25: -2 | D25: Directly assigned to electric or gas.
B26: 13 | C26: -3 | D26: Allocated to gas based on operating expenses excluding fuel and purchased power.
C30: PRO FORMA ADJUSTMENT
B32: =B26+1 -> 14 | C32: -1 | D32: Eliminate portions of prepayments which are applicable to gas operations. Allocated between electric | G32: =+F22 -> -756
B33: =1+B32 -> 15 | D33: and gas operations based on operating expenses excluding purchased power, off-system sales and
B34: =1+B33 -> 16 | D34: purchased gas.

Sheet SCHEDULE MJL-D5
A1: AMEREN MISSOURI
A2: TOTAL ELECTRIC CASH WORKING CAPITAL
A3: =+'SCHEDULE MJL-D3'!A3 -> FOR THE TWELVE MONTHS ENDED DECEMBER 31, 2020
A4: ($000)
J6: CASH WORKING
E7: REVENUE | F7: EXPENSE | G7: NET | I7: TEST YEAR | J7: CAPITAL
A8: LINE | C8: DESCRIPTION | E8: LAG | F8: LEAD (1) | G8: LEAD/LAG | H8: FACTOR | I8: EXPENSE | J8: REQUIREMENT
C9: (A) | E9: (B) | F9: (C) | G9: (D) | H9: (E) | I9: (F) | J9: (G)
A11: 1 | C11: PAYROLL & WITHHOLDINGS | E11: 37.09 | F11: -11.66 | G11: =+E11+F11 -> 25.43 | H11: =ROUND(+G11/365,6) -> 0.069671 | I11: 355318 | J11: =ROUND(+H11*I11,0) -> 24755
A12: =1+A11 -> 2 | C12: PENSIONS AND BENEFITS | E12: 37.09 | F12: -18.37 | G12: =+E12+F12 -> 18.72 | H12: =ROUND(+G12/365,6) -> 0.051288 | I12: 42295 | J12: =ROUND(+H12*I12,0) -> 2169
A13: 3 | C13: FUEL
A14: 4 | C14: NUCLEAR | E14: 37.09 | F14: -15.21 | G14: =+E14+F14 -> 21.88 | H14: =ROUND(+G14/365,6) -> 0.059945 | I14: 80163 | J14: =ROUND(+H14*I14,0) -> 4805
A15: 5 | C15: COAL | E15: 37.09 | F15: -14.43 | G15: 22.66 | H15: 0.062082 | I15: 496360 | J15: =ROUND(+H15*I15,0) -> 30815
A16: =1+A15 -> 6 | C16: NATURAL GAS | E16: 37.09 | F16: -40.72 | G16: -3.63 | H16: -0.009945 | I16: 10528 | J16: -105
A17: 7 | C17: OIL | E17: 37.09 | F17: -14.69 | G17: =+E17+F17 -> 22.4 | H17: 0.06137 | I17: 5013 | J17: =ROUND(+H17*I17,0) -> 308
A18: 8 | C18: PURCHASED POWER | E18: 37.09 | F18: -18.1 | G18: =+E18+F18 -> 18.99 | H18: 0.052027 | I18: 65072 | J18: =ROUND(+H18*I18,0) -> 3386
A19: 9 | C19: INCENTIVE COMPENSATION | E19: 37.09 | F19: -252.88 | G19: -215.79 | H19: -0.591205 | I19: 29407 | J19: -17386
A20: 10 | C20: UNCOLLECTIBLE ACCOUNTS | E20: 37.09 | F20: -37.09 | G20: 0 | H20: 0 | I20: 7884 | J20: 0
A21: 11 | C21: OTHER OPERATING EXPENSES | E21: 37.09 | F21: -42.25 | G21: -5.16 | H21: -0.014137 | I21: 501614 | J21: =ROUND(+H21*I21,0) -> -7091
A23: =1+A21 -> 12 | C23: TOTAL O&M EXPENSES | I23: 1593654
A25: =1+A23 -> 13 | C25: TOTAL CASH WORKING CAPITAL REQUIREMENT | J25: =SUM(J11:J21) -> 41656
A27: =1+A25 -> 14 | C27: FICA - EMPLOYER'S PORTION | E27: 37.09 | F27: -9.38 | G27: =+E27+F27 -> 27.71 | H27: =ROUND(+G27/365,6) -> 0.075918 | I27: 22279 | J27: =ROUND(+H27*I27,0) -> 1691
A28: =1+A27 -> 15 | C28: ST. LOUIS PAYROLL EXPENSE TAXES | E28: 37.09 | F28: -9.38 | G28: =+E28+F28 -> 27.71 | H28: =ROUND(+G28/365,6) -> 0.075918 | I28: 491 | J28: =ROUND(+H28*I28,0) -> 37
A29: 16 | C29: FEDERAL UNEMPLOYMENT TAXES | E29: 37.09 | F29: -9.38 | G29: 27.71 | H29: =ROUND(+G29/365,6) -> 0.075918 | I29: 179 | J29: 14
A30: 17 | C30: STATE UNEMPLOYMENT TAXES | E30: 37.09 | F30: -9.38 | G30: 27.71 | H30: 0.075918 | I30: 5 | J30: 0
A31: 18 | C31: CORPORATE FRANCHISE TAXES | E31: 37.09 | F31: -233.19 | G31: -196.1 | H31: -0.53726 | I31: 102 | J31: -55
A32: 19 | C32: PROPERTY TAXES | E32: 37.09 | F32: -183 | G32: -145.91 | H32: -0.399753 | I32: 157040 | J32: -62777
A33: 20 | C33: DECOMMISSIONING FEES | E33: 37.09 | F33: -69.5 | G33: =+E33+F33 -> -32.41 | H33: =ROUND(+G33/365,6) -> -0.088795 | I33: 6758 | J33: -600
A34: 21 | C34: SALES TAXES | E34: 37.09 | F34: -9.31 | G34: 27.78 | H34: 0.07611 | I34: 67725 | J34: 5155
A35: =1+A34 -> 22 | C35: MO & IA USE TAXES | E35: 37.09 | F35: -76.25 | G35: -39.16 | H35: -0.107288 | I35: 2871 | J35: -308
A36: =1+A35 -> 23 | C36: IL USE TAXES | E36: 37.09 | F36: -35.78 | G36: =+E36+F36 -> 1.31 | H36: =ROUND(+G36/365,6) -> 0.003589 | I36: 25 | J36: =ROUND(+H36*I36,0) -> 0
A37: 24 | C37: FED EXCISE HEAVY USE TAX | E37: 37.09 | F37: 125.57 | G37: =+E37+F37 -> 162.66 | H37: =ROUND(+G37/365,6) -> 0.445644 | I37: 22 | J37: =ROUND(+H37*I37,0) -> 10
A38: =1+A37 -> 25 | C38: SELF PROCURED INS TAX | E38: 37.09 | F38: -241.5 | G38: -204.41 | H38: -0.560027 | I38: -206 | J38: 115
A39: 26 | C39: OHIO COMMERCIAL ACTIVITY TAX | E39: 37.09 | F39: 50 | G39: 87.09 | H39: 0.238603 | I39: 0 | J39: 0
A40: 27 | C40: GROSS RECEIPTS TAXES | E40: 24.35 | F40: -26.99 | G40: -2.64 | H40: -0.007233 | I40: 133305 | J40: -964
A42: =1+A40 -> 28 | C42: TOTAL TAXES AND OTHER EXPENSES | I42: =SUM(I27:I40) -> 390596
A44: =1+A42 -> 29 | C44: NET CUSTOMER SUPPLIED FUNDS | J44: =SUM(J27:J40) -> -57682
A46: =1+A44 -> 30 | C46: NET CASH WORKING CAPITAL REQUIREMENT | J46: =J25+J44 -> -16026

Sheet SCHEDULE MJL-D6
A1: AMEREN MISSOURI
A2: TOTAL ELECTRIC FEDERAL AND STATE INCOME TAX AND CITY EARNINGS TAX CASH REQUIREMENTS
A3: AND INTEREST EXPENSE CASH REQUIREMENT
A4: ='SCHEDULE MJL-D5'!A3 -> FOR THE TWELVE MONTHS ENDED DECEMBER 31, 2020
A5: ($000)
J8: CASH WORKING
E9: REVENUE | F9: EXPENSE | G9: NET | I9: TEST YEAR | J9: CAPITAL
A10: LINE | C10: DESCRIPTION | E10: LAG | F10: LEAD (1) | G10: LEAD/LAG | H10: FACTOR | I10: EXPENSE | J10: REQUIREMENT
C11: (A) | E11: (B) | F11: (C) | G11: (D) | H11: (E) | I11: (F) | J11: (G)
A14: 1 | C14: FEDERAL INCOME TAX CASH REQUIREMENT | E14: 37.09 | F14: -38 | G14: =+E14+F14 -> -0.91 | H14: =ROUND(+G14/365,6) -> -0.002493 | I14: 38222 | J14: =ROUND(+H14*I14,0) -> -95
A16: =1+A14 -> 2 | C16: MO STATE INCOME TAX CASH REQUIREMENT | E16: 37.09 | F16: -38 | G16: =+E16+F16 -> -0.91 | H16: =ROUND(+G16/365,6) -> -0.002493 | I16: 19310 | J16: =ROUND(+H16*I16,0) -> -48
A18: =1+A16 -> 3 | C18: IN STATE INCOME TAX CASH REQUIREMENT | E18: 37.09 | F18: -14 | G18: =+E18+F18 -> 23.09 | H18: =ROUND(+G18/365,6) -> 0.06326 | I18: 40 | J18: =ROUND(+H18*I18,0) -> 3
A20: =1+A18 -> 4 | C20: IA STATE INCOME TAX CASH REQUIREMENT | E20: 37.09 | F20: 77 | G20: =+E20+F20 -> 114.09 | H20: =ROUND(+G20/365,6) -> 0.312575 | I20: 30 | J20: =ROUND(+H20*I20,0) -> 9
A22: =1+A20 -> 5 | C22: CITY EARNINGS TAX CASH REQUIREMENT | E22: 37.09 | F22: -274.5 | G22: =+E22+F22 -> -237.41 | H22: =ROUND(+G22/365,6) -> -0.650438 | I22: 78 | J22: =ROUND(+H22*I22,0) -> -51
A24: 6 | C24: INTEREST EXPENSE CASH REQUIREMENT | E24: 37.09 | F24: -91.37 | G24: =+E24+F24 -> -54.28 | H24: =ROUND(+G24/365,6) -> -0.148712 | I24: 183370 | J24: =ROUND(+H24*I24,0) -> -27269

Sheet SCHEDULE MJL-D7
A1: AMEREN MISSOURI
A2: TOTAL ELECTRIC AVERAGE CUSTOMER ADVANCES FOR CONSTRUCTION AND
A3: AVERAGE CUSTOMER DEPOSITS
A4: ='SCHEDULE MJL-D4'!B3 -> FOR THE TWELVE MONTHS ENDED DECEMBER 31, 2020
A5: ($000)
A8: LINE | C8: DESCRIPTION | E8: TOTAL ELECTRIC
C9: (A) | E9: (B)
A13: =1 -> 1 | C13: AVERAGE CUSTOMER ADVANCES FOR CONSTRUCTION | E13: -1696
A16: =1+A13 -> 2 | C16: AVERAGE CUSTOMER DEPOSITS | E16: -25001

Sheet SCHEDULE MJL-D8
A1: AMEREN MISSOURI
A2: OTHER REGULATORY ASSETS
A3: AND REGULATORY LIABILITIES
A4: =+'SCHEDULE MJL-D9'!A3:H3 -> FOR THE TWELVE MONTHS ENDED DECEMBER 31, 2020
A5: ($000)
H9: TOTAL
A10: LINE | C10: DESCRIPTION | H10: ELECTRIC
C11: (A) | H11: (B)(1)
A15: =1 -> 1 | C15: PENSIONS | H15: -24996
A18: =1+A15 -> 2 | C18: OTHER POST-EMPLOYMENT BENEFITS | H18: -7201
A21: =1+A18 -> 3 | C21: PAYS REGULATORY ASSET | H21: 3044
A24: =1+A21 -> 4 | C24: PISA REGULATORY ASSET | H24: 242925
A27: =1+A24 -> 5 | C27: Reserved for future use | H27: 0
A30: =A24+1 -> 5 | C30: UNDER COLLECTED AMORTIZATIONS IN RATE BASE | H30: -749
A33: =1+A30 -> 6 | C33: (1) A positive balance is a Regulatory Asset and a negative balance is a
A34: =1+A33 -> 7 | C34: Regulatory Liability.

Sheet SCHEDULE MJL-D9
A1: AMEREN MISSOURI
A2: ACCUMULATED DEFERRED INCOME TAXES
A3: =+'SCHEDULE MJL-D3'!A3:G3 -> FOR THE TWELVE MONTHS ENDED DECEMBER 31, 2020
A4: ($000)
F6: TOTAL | H6: PRO FORMA
F7: ELECTRIC | G7: PRO FORMA | H7: ELECTRIC
A8: LINE | C8: DESCRIPTION | F8: PER BOOKS | G8: ADJUSTMENTS | H8: TOTAL
C9: (A) | F9: (B) | G9: (C) | H9: (D)
A11: 1 | C11: ACCOUNT 190 | F11: 46978 | G11: -1618 | H11: =+F11+G11 -> 45360
A13: 2 | C13: ACCOUNT 281 | F13: -95755 | G13: 0 | H13: =+F13+G13 -> -95755
A15: 3 | C15: ACCOUNT 282 | F15: -2793556 | G15: -89285 | H15: =+F15+G15 -> -2882841
A17: 4 | C17: ACCOUNT 283 | F17: -52536 | G17: -9151 | H17: =+F17+G17 -> -61687
A19: 5 | C19: MERAMEC ENERGY CENTER ADJUSTMENT | F19: 0 | G19: 141 | H19: =+F19+G19 -> 141
A21: 6 | C21: TOTAL ACCUMULATED DEFERRED INCOME TAXES | F21: =SUM(F11:F20) -> -2894869 | G21: =SUM(G11:G20) -> -99913 | H21: =SUM(H11:H20) -> -2994782
C24: PRO FORMA ADJUSTMENT:
A25: 7 | C25: Changes in balances from December 31, 2020 to September 30, 2021, which is the end of the true-up period.
A26: 8 | C26: Meramec Energy Center Adjustment.

Sheet SCHEDULE MJL-D10
A1: AMEREN MISSOURI
A2: TOTAL ELECTRIC PER BOOK AND PRO FORMA OPERATING REVENUES
A3: ='SCHEDULE MJL-D5'!A3 -> FOR THE TWELVE MONTHS ENDED DECEMBER 31, 2020
A4: ($000)
F8: ADJUSTED
D9: TOTAL | E9: PRO FORMA | F9: TOTAL
A10: LINE | C10: DESCRIPTION | D10: ELECTRIC | E10: ADJUSTMENTS | F10: ELECTRIC
C11: (A) | D11: (B) | E11: (C) | F11: (D)
C13: OPERATING REVENUES
A14: 1 | C14: RETAIL REVENUES | D14: 2673832 | E14: =SUM(D31:D43) -> -171836 | F14: =D14+E14 -> 2501996
A15: =1+A14 -> 2 | C15: PROVISION FOR RATE REFUNDS | D15: 43975 | E15: =+E46 -> -43975 | F15: =D15+E15 -> 0
A16: =1+A15 -> 3 | C16: OTHER ELECTRIC REVENUES | D16: 85005 | E16: =+D48+D49+D50+D51+D52+D53 -> 755 | F16: =D16+E16 -> 85760
A18: =1+A16 -> 4 | C18: TOTAL REVENUES | D18: =SUM(D13:D16) -> 2802812 | E18: =SUM(E13:E16) -> -215056 | F18: =SUM(F13:F16) -> 2587756
A20: =1+A18 -> 5 | C20: DISPOSITION OF ALLOWANCES | D20: 0 | E20: =+E56 -> 0 | F20: =D20+E20 -> 0
A22: =1+A20 -> 6 | C22: OFF-SYSTEM SALES - ENERGY | D22: 152306 | E22: =+E58 -> 149189 | F22: =D22+E22 -> 301495
A24: =1+A22 -> 7 | C24: OFF-SYSTEM SALES-CAPACITY REVENUE | D24: 17871 | E24: =+E60 -> 5933 | F24: =D24+E24 -> 23804
A26: =A24+1 -> 8 | C26: TOTAL REVENUES PER BOOKS | D26: =SUM(D18:D24) -> 2972989 | E26: =SUM(E18:E24) -> -59934 | F26: =SUM(F18:F24) -> 2913055
C30: PRO FORMA ADJUSTMENTS:
A31: =1+A26 -> 9 | B31: -1 | C31: REMOVE ADD ON REVENUE TAX | D31: -133114
A32: =1+A31 -> 10 | B32: -2 | C32: ELIMINATE REVENUE FROM MEEIA RECOVERIES | D32: -90051
A33: 11 | B33: -3 | C33: ELIMINATE REVENUE FROM FAC RECOVERIES | D33: 47583
A34: 12 | B34: -4 | C34: ELIMINATE UNBILLED REVENUE | D34: 7432
A35: 13 | B35: -5 | C35: ADJUST FOR PANDEMIC SHOCK | D35: 12831
A36: 14 | B36: -6 | C36: ANNUALIZE RATE CHANGE | D36: -2189
A37: 15 | B37: -7 | C37: ADJUST FOR EDI | D37: -179
A38: 16 | B38: -8 | C38: ADJUST FOR GROWTH | D38: 8834
A39: 17 | B39: -9 | C39: ADJUST FOR RESRAM REVENUES | D39: -11460
A40: 18 | B40: -10 | C40: ADJUST FOR ENERGY EFFICIENCY AND SOLAR ANNUALIZATION | D40: -17582
A41: 19 | B41: -11 | C41: DAYS ADJUSTMENT | D41: -3148
A42: 20 | B42: -12 | C42: ADJUST FOR BILLING UNITS | D42: -656
A43: =1+A42 -> 21 | B43: -13 | C43: ADJUST FOR NORMAL WEATHER | D43: 9863
A44: =1+A43 -> 22 | C44: TOTAL | E44: =SUM(D31:D43) -> -171836
A46: =1+A44 -> 23 | B46: -14 | C46: ELIMINATE PROVISION FOR RATE REFUNDS | E46: -43975
A48: =1+A46 -> 24 | B48: -15 | C48: ADJUST TRANSMISSION REVENUES | D48: 522
A49: 25 | B49: -16 | C49: MISC REVENUE FROM COAL REFINEMENT | D49: -1385
A50: 26 | B50: -17 | C50: ADJUST WAIVED LATE FEE REVENUE FROM AAO | D50: 4464
A51: 27 | B51: -18 | C51: MISC LEASE REVENUE FROM SOFTWARE LEASES | D51: -1544
A52: 28 | B52: -19 | C52: ADJUST BOA LEASE REVENUE | D52: -1687
A53: 29 | B53: -20 | C53: ADJUST FOR PAYS REVENUES | D53: 385
A54: =1+A53 -> 30 | C54: TOTAL | E54: =SUM(D48:D53) -> 755
A56: =1+A54 -> 31 | B56: -21 | C56: ELIMINATE DISPOSITION OF ALLOWANCES | E56: 0
A58: =1+A56 -> 32 | B58: -22 | C58: ADJUST OFF-SYSTEM SALES - ENERGY | E58: 149189
A60: =1+A58 -> 33 | B60: -23 | C60: ADJUST OFF-SYSTEM SALES - CAPACITY | E60: 5933
A62: =1+A60 -> 34 | C62: TOTAL PRO FORMA ADJUSTMENTS | E62: =SUM(E31:E60) -> -59934

Sheet SCHEDULE MJL-D11-1
F1: #1 | G1: #2 | H1: #3 | I1: #4 | J1: #5 | K1: #6 | L1: #7 | M1: #8 | N1: #9 | S1: #10 | T1: #11 | U1: #12 | V1: #13 | W1: #14 | X1: #15 | Y1: #16 | Z1: #17 | AA1: #18 | AF1: #19 | AG1: #20 | AH1: #21 | AI1: #22 | AJ1: #23 | AK1: #24 | AL1: #25 | AQ1: #26 | AR1: #27 | AS1: #28 | AT1: #29 | AU1: #30 | AV1: #31 | AW1: #32 | AX1: #33 | AY1: #34 | BD1: #35 | BE1: #36 | BF1: #37 | BG1: #38 | BH1: #39 | BI1: #40 | BJ1: #41 | BK1: #42 | BL1: #43
C2: Title included in Page header for printing purposes. | H2: LONG TERM | K2: ADJUST | AH2: ENERGY EFFICIENCY | AQ2: PRO FORMA | AS2: REBASE | AT2: AMORTIZE | AY2: BOARD OF
E3: TOTAL | G3: INCENTIVE | H3: INCENTIVE | I3: STAFFING | J3: CHANGE IN FUEL | K3: PURCHASED | L3: MARK TWAIN | M3: COAL | N3: STEAM | S3: MERAMEC | T3: ELIMINATE | U3: CALLAWAY | V3: OTHER | W3: REBASE | X3: ELIMINATE | Y3: ANNUALIZE SOLAR | Z3: DEPRECIATION | AA3: NORMALIZE | AF3: ANNUALIZE | AG3: ADD INTEREST | AH3: PROGRAM COST | AI3: NORMALIZE | AJ3: ANNUALIZE | AK3: ANNUALIZE | AQ3: MEDICAL & | AR3: NON-QUALIFIED | AS3: PENSION | AT3: PENSION | AU3: RESRAM | AY3: DIRECTORS | BD3: NORMALIZE | BE3: BOA | BF3: SOFTWARE | BG3: ALLOCATION | BH3: REMOVE | BJ3: ELECTRIC | BK3: CUSTOMER | BL3: EV | BN3: TOTAL | BO3: PRO FORMA
E4: PER | F4: LABOR | G4: COMPENSATION | H4: COMPENSATION | I4: ANNUALIZATION | J4: EXPENSE FOR | K4: POWER FOR | L4: TRANSMISSION | M4: REFINEMENT | N4: PLANT | S4: MAINTENANCE | T4: FAC | U4: REFUELING | V4: RES AMORT | W4: RES | X4: SOLAR | Y4: REBATE | Z4: TO O&M | AA4: STORM | AF4: VEG MGMT & | AG4: ON CUSTOMER | AH4: RECOVERY | AI4: JANITORIAL COSTS | AJ4: BAD DEBT | AK4: EEI | AL4: INSURANCE | AQ4: BENEFIT | AR4: PENSION | AS4: AND OPEB | AT4: AND OPEB | AU4: BASE | AV4: ALCOHOL | AW4: RATE CASE | AX4: MPSC | AY4: EXPENSE | BD4: STUDY | BE4: RENTAL | BF4: RENTAL | BG4: FACTOR | BH4: AAO | BI4: COLI | BJ4: COSTS | BK4: CONVENIENCE | BL4: INCENTIVE | BN4: PRO FORMA | BO4: ELECTRIC
C5: LINE | D5: FUNCTIONAL CLASSIFICATION | E5: BOOKS | F5: ADJUSTMENT | G5: ADJUSTMENT | H5: ADJUSTMENT | I5: SALARY & BENEFITS | J5: TU CHANGE | K5: TU CHANGE | L5: ADJUSTMENT | M5: ADJUSTMENT | N5: MAINTENANCE | Q5: LINE | R5: FUNCTIONAL CLASSIFICATION | S5: ADJUSTMENT | T5: RECOVERY | U5: EXPENSES | V5: ADJUSTMENT | W5: EXPENSE | X5: AMOUNTS | Y5: AMORTIZATION | Z5: ADJUSTMENT | AA5: COSTS | AD5: LINE | AE5: FUNCTIONAL CLASSIFICATION | AF5: INSPECTIONS | AG5: DEPOSITS | AH5: ADJUSTMENT | AI5: POST PANDEMIC | AJ5: EXPENSE | AK5: DUES | AL5: ADJUST. | AO5: LINE | AP5: FUNCTIONAL CLASSIFICATION | AQ5: ADJUST. | AR5: ADJUST. | AS5: TRACKER | AT5: TRACKER | AU5: EXPENSE | AV5: PURCHASES | AW5: EXPENSES | AX5: ASSESSMENT | AY5: ADJUSTMENT | BB5: LINE | BC5: FUNCTIONAL CLASSIFICATION | BD5: EXPENSE | BE5: EXPENSE | BF5: EXPENSE | BG5: ADJUSTMENT | BH5: DEFERRAL | BI5: NORMALIZATION | BJ5: ALLOC TO GAS | BK5: FEES | BL5: ADJUSTMENT | BN5: ADJUSTMENT | BO5: TOTALS
D6: (A) | E6: (B) | F6: (C) | G6: (D) | H6: (E) | I6: (F) | J6: (G) | K6: (H) | L6: (I) | M6: (J) | N6: (K) | R6: (A) | S6: (B) | T6: (C) | U6: (D) | V6: (E) | W6: (F) | X6: (G) | Y6: (H) | Z6: (I) | AA6: (J) | AE6: (A) | AF6: (B) | AG6: (C) | AH6: (D) | AI6: (E ) | AJ6: (F) | AK6: (G) | AL6: (H) | AP6: (A) | AQ6: (B) | AR6: (C) | AS6: (D) | AT6: (E ) | AU6: (F) | AV6: (G) | AW6: (H) | AX6: (I) | AY6: (J) | BC6: (A) | BD6: (B) | BE6: (C) | BF6: (D) | BG6: (E ) | BH6: (F) | BI6: (G) | BJ6: (H) | BK6: (I) | BL6: (J) | BN6: (G) | BO6: (H)
D7: PRODUCTION: | R7: PRODUCTION: | AE7: PRODUCTION: | AP7: PRODUCTION: | BC7: PRODUCTION:
D8: INCREMENTAL COSTS: | R8: INCREMENTAL COSTS: | AE8: INCREMENTAL COSTS: | AP8: INCREMENTAL COSTS: | BC8: INCREMENTAL COSTS:
C9: 1 | D9: LABOR | E9: 204321 | F9: 4133 | G9: -2266 | H9: -1196 | I9: 0 | J9: 0 | K9: 0 | L9: 0 | M9: 0 | Q9: 1 | R9: LABOR | S9: 0 | T9: 0 | U9: 5088 | V9: 0 | W9: 0 | X9: 0 | Y9: 0 | Z9: 0 | AA9: 0 | AD9: 1 | AE9: LABOR | AF9: 0 | AG9: 0 | AH9: 0 | AI9: 0 | AJ9: 0 | AK9: 0 | AL9: 0 | AO9: 1 | AP9: LABOR | AQ9: 0 | AR9: 0 | AS9: 0 | AT9: 0 | AU9: 0 | AV9: 0 | AW9: 0 | AX9: 0 | AY9: 0 | BB9: 1 | BC9: LABOR | BD9: 0 | BE9: 0 | BF9: 0 | BG9: 0 | BH9: 0 | BI9: 0 | BJ9: 0 | BK9: 0 | BL9: 0 | BN9: =SUM(F9:N9,S9:AA9,AF9:AL9,AQ9:AY9,BD9:BM9) -> 5759 | BO9: =E9+BN9 -> 210080
D10: FUEL (EXCL. W/H CR.) | R10: FUEL (EXCL. W/H CR.) | AE10: FUEL (EXCL. W/H CR.) | AP10: FUEL (EXCL. W/H CR.) | BC10: FUEL (EXCL. W/H CR.)
C11: =1+C9 -> 2 | D11: BASE LOAD | E11: 432189 | F11: 0 | G11: 0 | H11: 0 | I11: 0 | J11: -46999 | K11: 0 | L11: 0 | M11: 0 | Q11: =1+Q9 -> 2 | R11: BASE LOAD | S11: 0 | T11: 0 | U11: 0 | V11: 0 | W11: 0 | X11: 0 | Y11: 0 | Z11: 0 | AA11: 0 | AD11: =1+AD9 -> 2 | AE11: BASE LOAD | AF11: 0 | AG11: 0 | AH11: 0 | AI11: 0 | AJ11: 0 | AK11: 0 | AL11: 0 | AO11: =1+AO9 -> 2 | AP11: BASE LOAD | AQ11: 0 | AR11: 0 | AS11: 0 | AT11: 0 | AU11: 0 | AV11: 0 | AW11: 0 | AX11: 0 | AY11: 0 | BB11: =1+BB9 -> 2 | BC11: BASE LOAD | BD11: 0 | BE11: 0 | BF11: 0 | BG11: 0 | BH11: 0 | BI11: 0 | BJ11: 0 | BK11: 0 | BL11: 0 | BN11: =SUM(F11:N11,S11:AA11,AF11:AL11,AQ11:AY11,BD11:BM11) -> -46999 | BO11: =E11+BN11 -> 385190
C12: =1+C11 -> 3 | D12: INTERCHANGE | E12: 103625 | F12: 0 | G12: 0 | H12: 0 | I12: 0 | J12: 110435 | K12: 0 | L12: 0 | M12: 0 | Q12: =1+Q11 -> 3 | R12: INTERCHANGE | S12: 0 | T12: 0 | U12: 0 | V12: 0 | W12: 0 | X12: 0 | Y12: 0 | Z12: 0 | AA12: 0 | AD12: =1+AD11 -> 3 | AE12: INTERCHANGE | AF12: 0 | AG12: 0 | AH12: 0 | AI12: 0 | AJ12: 0 | AK12: 0 | AL12: 0 | AO12: =1+AO11 -> 3 | AP12: INTERCHANGE | AQ12: 0 | AR12: 0 | AS12: 0 | AT12: 0 | AU12: 0 | AV12: 0 | AW12: 0 | AX12: 0 | AY12: 0 | BB12: =1+BB11 -> 3 | BC12: INTERCHANGE | BD12: 0 | BE12: 0 | BF12: 0 | BG12: 0 | BH12: 0 | BI12: 0 | BJ12: 0 | BK12: 0 | BL12: 0 | BN12: =SUM(F12:N12,S12:AA12,AF12:AL12,AQ12:AY12,BD12:BM12) -> 110435 | BO12: =E12+BN12 -> 214060
C13: =1+C12 -> 4 | D13: FUEL ADDITIVES | E13: 6266 | F13: 0 | G13: 0 | H13: 0 | I13: 0 | J13: 1542 | K13: 0 | L13: 0 | M13: 0 | N13: 0 | Q13: =1+Q12 -> 4 | R13: FUEL ADDITIVES | S13: 0 | T13: 0 | U13: 0 | V13: 0 | W13: 0 | X13: 0 | Y13: 0 | Z13: 0 | AA13: 0 | AD13: =1+AD12 -> 4 | AE13: FUEL ADDITIVES | AF13: 0 | AG13: 0 | AH13: 0 | AI13: 0 | AJ13: 0 | AK13: 0 | AL13: 0 | AO13: =1+AO12 -> 4 | AP13: FUEL ADDITIVES | AQ13: 0 | AR13: 0 | AS13: 0 | AT13: 0 | AU13: 0 | AV13: 0 | AW13: 0 | AX13: 0 | AY13: 0 | BB13: =1+BB12 -> 4 | BC13: FUEL ADDITIVES | BD13: 0 | BE13: 0 | BF13: 0 | BG13: 0 | BH13: 0 | BI13: 0 | BJ13: 0 | BK13: 0 | BL13: 0 | BN13: 1542 | BO13: =E13+BN13 -> 7808
D14: PURCHASED POWER | R14: PURCHASED POWER | AE14: PURCHASED POWER | AP14: PURCHASED POWER | BC14: PURCHASED POWER
D15: ENERGY | R15: ENERGY | AE15: ENERGY | AP15: ENERGY | BC15: ENERGY
C16: =1+C13 -> 5 | D16: BASE LOAD | E16: 63617 | F16: 0 | G16: 0 | H16: 0 | I16: 0 | J16: 0 | K16: -15360 | L16: 0 | M16: 0 | N16: 0 | Q16: =1+Q13 -> 5 | R16: BASE LOAD | S16: 0 | T16: 0 | U16: 0 | V16: 0 | W16: 0 | X16: 0 | Y16: 0 | Z16: 0 | AA16: 0 | AD16: =1+AD13 -> 5 | AE16: BASE LOAD | AF16: 0 | AG16: 0 | AH16: 0 | AI16: 0 | AJ16: 0 | AK16: 0 | AL16: 0 | AO16: =1+AO13 -> 5 | AP16: BASE LOAD | AQ16: 0 | AR16: 0 | AS16: 0 | AT16: 0 | AU16: 0 | AV16: 0 | AW16: 0 | AX16: 0 | AY16: 0 | BB16: =1+BB13 -> 5 | BC16: BASE LOAD | BD16: 0 | BE16: 0 | BF16: 0 | BG16: 0 | BH16: 0 | BI16: 0 | BJ16: 0 | BK16: 0 | BL16: 0 | BN16: -15360 | BO16: =E16+BN16 -> 48257
C17: =1+C16 -> 6 | D17: INTERCHANGE | E17: 2864 | F17: 0 | G17: 0 | H17: 0 | I17: 0 | J17: 0 | K17: -2865 | L17: 0 | M17: 0 | N17: 0 | Q17: =1+Q16 -> 6 | R17: INTERCHANGE | S17: 0 | T17: 0 | U17: 0 | V17: 0 | W17: 0 | X17: 0 | Y17: 0 | Z17: 0 | AA17: 0 | AD17: =1+AD16 -> 6 | AE17: INTERCHANGE | AF17: 0 | AG17: 0 | AH17: 0 | AI17: 0 | AJ17: 0 | AK17: 0 | AL17: 0 | AO17: =1+AO16 -> 6 | AP17: INTERCHANGE | AQ17: 0 | AR17: 0 | AS17: 0 | AT17: 0 | AU17: 0 | AV17: 0 | AW17: 0 | AX17: 0 | AY17: 0 | BB17: =1+BB16 -> 6 | BC17: INTERCHANGE | BD17: 0 | BE17: 0 | BF17: 0 | BG17: 0 | BH17: 0 | BI17: 0 | BJ17: 0 | BK17: 0 | BL17: 0 | BN17: -2865 | BO17: =E17+BN17 -> -1
D18: CAPACITY COSTS | R18: CAPACITY COSTS | V18: 0 | W18: 0 | X18: 0 | Y18: 0 | Z18: 0 | AA18: 0 | AE18: CAPACITY COSTS | AP18: CAPACITY COSTS | AR18: 0 | AS18: 0 | AT18: 0 | AU18: 0 | AV18: 0 | AW18: 0 | AX18: 0 | AY18: 0 | BC18: CAPACITY COSTS | BD18: 0 | BE18: 0 | BF18: 0 | BG18: 0 | BH18: 0 | BI18: 0 | BJ18: 0 | BK18: 0 | BL18: 0 | BN18: 0
C19: =1+C17 -> 7 | D19: BASE LOAD | E19: 11550 | F19: 0 | G19: 0 | H19: 0 | I19: 0 | J19: 0 | K19: 5265 | L19: 0 | M19: 0 | N19: 0 | Q19: =1+Q17 -> 7 | R19: BASE LOAD | S19: 0 | T19: 0 | U19: 0 | V19: 0 | W19: 0 | X19: 0 | Y19: 0 | Z19: 0 | AA19: 0 | AD19: =1+AD17 -> 7 | AE19: BASE LOAD | AF19: 0 | AG19: 0 | AH19: 0 | AI19: 0 | AJ19: 0 | AK19: 0 | AL19: 0 | AO19: =1+AO17 -> 7 | AP19: BASE LOAD | AQ19: 0 | AR19: 0 | AS19: 0 | AT19: 0 | AU19: 0 | AV19: 0 | AW19: 0 | AX19: 0 | AY19: 0 | BB19: =1+BB17 -> 7 | BC19: BASE LOAD | BD19: 0 | BE19: 0 | BF19: 0 | BG19: 0 | BH19: 0 | BI19: 0 | BJ19: 0 | BK19: 0 | BL19: 0 | BN19: 5265 | BO19: =E19+BN19 -> 16815
C20: =1+C19 -> 8 | D20: INTERCHANGE | E20: 0 | F20: 0 | G20: 0 | H20: 0 | I20: 0 | J20: 0 | K20: 0 | L20: 0 | M20: 0 | N20: 0 | Q20: =1+Q19 -> 8 | R20: INTERCHANGE | S20: 0 | T20: 0 | U20: 0 | V20: 0 | W20: 0 | X20: 0 | Y20: 0 | Z20: 0 | AA20: 0 | AD20: =1+AD19 -> 8 | AE20: INTERCHANGE | AF20: 0 | AG20: 0 | AH20: 0 | AI20: 0 | AJ20: 0 | AK20: 0 | AL20: 0 | AO20: =1+AO19 -> 8 | AP20: INTERCHANGE | AQ20: 0 | AR20: 0 | AS20: 0 | AT20: 0 | AU20: 0 | AV20: 0 | AW20: 0 | AX20: 0 | AY20: 0 | BB20: =1+BB19 -> 8 | BC20: INTERCHANGE | BD20: 0 | BE20: 0 | BF20: 0 | BG20: 0 | BH20: 0 | BI20: 0 | BJ20: 0 | BK20: 0 | BL20: 0 | BN20: 0 | BO20: =E20+BN20 -> 0
C21: =1+C20 -> 9 | D21: OTHER | E21: 24071 | F21: 0 | G21: 0 | H21: 0 | I21: 0 | J21: 0 | K21: 0 | L21: 0 | M21: 21260 | N21: 8920 | Q21: =1+Q20 -> 9 | R21: OTHER | S21: -2070 | T21: 49057 | U21: 20557 | V21: 3664 | W21: 1375 | X21: 0 | Y21: 0 | Z21: -393 | AA21: 0 | AD21: =1+AD20 -> 9 | AE21: OTHER | AF21: 0 | AG21: 0 | AH21: 0 | AI21: 0 | AJ21: 0 | AK21: 0 | AL21: 0 | AO21: =1+AO20 -> 9 | AP21: OTHER | AQ21: 0 | AR21: 0 | AS21: 0 | AT21: 0 | AU21: 19814 | AV21: -4 | AW21: 0 | AX21: 0 | AY21: 0 | BB21: =1+BB20 -> 9 | BC21: OTHER | BD21: 0 | BE21: 0 | BF21: 0 | BG21: 0 | BH21: -4431 | BI21: 0 | BJ21: 0 | BK21: 0 | BL21: 0 | BN21: =SUM(F21:N21,S21:AA21,AF21:AL21,AQ21:AY21,BD21:BM21) -> 117749 | BO21: =E21+BN21 -> 141820
C22: =1+C21 -> 10 | D22: TOTAL PRODUCTION EXPENSES | E22: =SUM(E9:E21) -> 848503 | F22: 4133 | G22: -2266 | H22: -1196 | I22: 0 | J22: =SUM(J9:J21) -> 64978 | K22: =SUM(K9:K21) -> -12960 | L22: =SUM(L9:L21) -> 0 | M22: =SUM(M9:M21) -> 21260 | N22: 8920 | Q22: =1+Q21 -> 10 | R22: TOTAL PRODUCTION EXPENSES | S22: =SUM(S9:S21) -> -2070 | T22: =SUM(T9:T21) -> 49057 | U22: =SUM(U9:U21) -> 25645 | V22: =SUM(V9:V21) -> 3664 | W22: =SUM(W9:W21) -> 1375 | X22: =SUM(X9:X21) -> 0 | Y22: 0 | Z22: =SUM(Z9:Z21) -> -393 | AA22: 0 | AD22: =1+AD21 -> 10 | AE22: TOTAL PRODUCTION EXPENSES | AF22: =SUM(AF9:AF21) -> 0 | AG22: =SUM(AG9:AG21) -> 0 | AH22: =SUM(AH9:AH21) -> 0 | AI22: 0 | AJ22: =SUM(AJ9:AJ21) -> 0 | AK22: 0 | AL22: =SUM(AL9:AL21) -> 0 | AO22: =1+AO21 -> 10 | AP22: TOTAL PRODUCTION EXPENSES | AQ22: =SUM(AQ9:AQ21) -> 0 | AR22: =SUM(AR9:AR21) -> 0 | AS22: =SUM(AS9:AS21) -> 0 | AT22: =SUM(AT9:AT21) -> 0 | AU22: =SUM(AU9:AU21) -> 19814 | AV22: -4 | AW22: =SUM(AW9:AW21) -> 0 | AX22: =SUM(AX9:AX21) -> 0 | AY22: 0 | BB22: =1+BB21 -> 10 | BC22: TOTAL PRODUCTION EXPENSES | BD22: =SUM(BD9:BD21) -> 0 | BE22: 0 | BF22: =SUM(BF9:BF21) -> 0 | BG22: =SUM(BG9:BG21) -> 0 | BH22: =SUM(BH9:BH21) -> -4431 | BI22: =SUM(BI9:BI21) -> 0 | BJ22: =SUM(BJ9:BJ21) -> 0 | BK22: 0 | BL22: 0 | BN22: =SUM(BN9:BN21) -> 175526 | BO22: =SUM(BO9:BO21) -> 1024029
D24: TRANSMISSION EXPENSES: | R24: TRANSMISSION EXPENSES: | AE24: TRANSMISSION EXPENSES: | AP24: TRANSMISSION EXPENSES: | BC24: TRANSMISSION EXPENSES:
C25: =1+C22 -> 11 | D25: LABOR | E25: 6197 | F25: 114 | G25: -69 | H25: -106 | I25: 0 | J25: 0 | K25: 0 | L25: 0 | M25: 0 | N25: 0 | Q25: =1+Q22 -> 11 | R25: LABOR | S25: 0 | T25: 0 | U25: 0 | V25: 0 | W25: 0 | X25: 0 | Y25: 0 | Z25: 0 | AA25: 0 | AD25: =1+AD22 -> 11 | AE25: LABOR | AF25: 0 | AG25: 0 | AH25: 0 | AI25: 0 | AJ25: 0 | AK25: 0 | AL25: 0 | AO25: =1+AO22 -> 11 | AP25: LABOR | AQ25: 0 | AR25: 0 | AS25: 0 | AT25: 0 | AU25: 0 | AV25: 0 | AW25: 0 | AX25: 0 | AY25: 0 | BB25: =1+BB22 -> 11 | BC25: LABOR | BD25: 0 | BE25: 0 | BF25: 0 | BG25: 0 | BH25: 0 | BI25: 0 | BJ25: 0 | BK25: 0 | BL25: 0 | BN25: =SUM(F25:N25,S25:AA25,AF25:AL25,AQ25:AY25,BD25:BM25) -> -61 | BO25: =E25+BN25 -> 6136
C26: =1+C25 -> 12 | D26: OTHER | E26: 98176 | F26: 0 | G26: 0 | H26: 0 | I26: 0 | J26: 0 | K26: 5856 | L26: -160 | M26: 0 | N26: 0 | Q26: =1+Q25 -> 12 | R26: OTHER | S26: 0 | T26: 0 | U26: 0 | V26: 0 | W26: 0 | X26: 0 | Y26: 0 | Z26: 0 | AA26: 0 | AD26: =1+AD25 -> 12 | AE26: OTHER | AF26: 0 | AG26: 0 | AH26: 0 | AI26: 0 | AJ26: 0 | AK26: 0 | AL26: 0 | AO26: =1+AO25 -> 12 | AP26: OTHER | AQ26: 0 | AR26: 0 | AS26: 0 | AT26: 0 | AU26: 2445 | AV26: -1 | AW26: 0 | AX26: 0 | AY26: 0 | BB26: =1+BB25 -> 12 | BC26: OTHER | BD26: 0 | BE26: 0 | BF26: 0 | BG26: -505 | BH26: 0 | BI26: 0 | BJ26: 0 | BK26: 0 | BL26: 0 | BN26: 7635 | BO26: =E26+BN26 -> 105811
C27: =1+C26 -> 13 | D27: TOTAL TRANSMISSION EXPENSES | E27: =SUM(E25:E26) -> 104373 | F27: 114 | G27: -69 | H27: -106 | I27: 0 | J27: =SUM(J25:J26) -> 0 | K27: =SUM(K25:K26) -> 5856 | L27: =SUM(L25:L26) -> -160 | M27: =SUM(M25:M26) -> 0 | N27: 0 | Q27: =1+Q26 -> 13 | R27: TOTAL TRANSMISSION EXPENSES | S27: =SUM(S25:S26) -> 0 | T27: =SUM(T25:T26) -> 0 | U27: =SUM(U25:U26) -> 0 | V27: =SUM(V25:V26) -> 0 | W27: =SUM(W25:W26) -> 0 | X27: =SUM(X25:X26) -> 0 | Y27: 0 | Z27: =SUM(Z25:Z26) -> 0 | AA27: 0 | AD27: =1+AD26 -> 13 | AE27: TOTAL TRANSMISSION EXPENSES | AF27: =SUM(AF25:AF26) -> 0 | AG27: =SUM(AG25:AG26) -> 0 | AH27: =SUM(AH25:AH26) -> 0 | AI27: 0 | AJ27: =SUM(AJ25:AJ26) -> 0 | AK27: 0 | AL27: =SUM(AL25:AL26) -> 0 | AO27: =1+AO26 -> 13 | AP27: TOTAL TRANSMISSION EXPENSES | AQ27: =SUM(AQ25:AQ26) -> 0 | AR27: =SUM(AR25:AR26) -> 0 | AS27: =SUM(AS25:AS26) -> 0 | AT27: =SUM(AT25:AT26) -> 0 | AU27: =SUM(AU25:AU26) -> 2445 | AV27: -1 | AW27: =SUM(AW25:AW26) -> 0 | AX27: =SUM(AX25:AX26) -> 0 | AY27: 0 | BB27: =1+BB26 -> 13 | BC27: TOTAL TRANSMISSION EXPENSES | BD27: =SUM(BD25:BD26) -> 0 | BE27: 0 | BF27: =SUM(BF25:BF26) -> 0 | BG27: =SUM(BG25:BG26) -> -505 | BH27: =SUM(BH25:BH26) -> 0 | BI27: =SUM(BI25:BI26) -> 0 | BJ27: =SUM(BJ25:BJ26) -> 0 | BK27: 0 | BL27: 0 | BN27: =SUM(BN25:BN26) -> 7574 | BO27: =SUM(BO25:BO26) -> 111947
D29: REGIONAL MARKET EXPENSES: | R29: REGIONAL MARKET EXPENSES: | AE29: REGIONAL MARKET EXPENSES: | AP29: REGIONAL MARKET EXPENSES: | BC29: REGIONAL MARKET EXPENSES:
C30: =1+C27 -> 14 | D30: LABOR | E30: 0 | F30: 0 | G30: 0 | H30: 0 | I30: 0 | J30: 0 | K30: 0 | L30: 0 | M30: 0 | N30: 0 | Q30: =1+Q27 -> 14 | R30: LABOR | S30: 0 | T30: 0 | U30: 0 | V30: 0 | W30: 0 | X30: 0 | Y30: 0 | Z30: 0 | AA30: 0 | AD30: =1+AD27 -> 14 | AE30: LABOR | AF30: 0 | AG30: 0 | AH30: 0 | AI30: 0 | AJ30: 0 | AK30: 0 | AL30: 0 | AO30: =1+AO27 -> 14 | AP30: LABOR | AQ30: 0 | AR30: 0 | AS30: 0 | AT30: 0 | AU30: 0 | AV30: 0 | AW30: 0 | AX30: 0 | AY30: 0 | BB30: =1+BB27 -> 14 | BC30: LABOR | BD30: 0 | BE30: 0 | BF30: 0 | BG30: 0 | BH30: 0 | BI30: 0 | BJ30: 0 | BK30: 0 | BL30: 0 | BN30: =SUM(F30:N30,S30:AA30,AF30:AL30,AQ30:AY30,BD30:BM30) -> 0 | BO30: =E30+BN30 -> 0
C31: =1+C30 -> 15 | D31: OTHER | E31: 7329 | F31: 0 | G31: 0 | H31: 0 | I31: 0 | J31: 0 | K31: 0 | L31: 0 | M31: 0 | N31: 0 | Q31: =1+Q30 -> 15 | R31: OTHER | S31: 0 | T31: 0 | U31: 0 | V31: 0 | W31: 0 | X31: 0 | Y31: 0 | Z31: 0 | AA31: 0 | AD31: =1+AD30 -> 15 | AE31: OTHER | AF31: 0 | AG31: 0 | AH31: 0 | AI31: 0 | AJ31: 0 | AK31: 0 | AL31: 0 | AO31: =1+AO30 -> 15 | AP31: OTHER | AQ31: 0 | AR31: 0 | AS31: 0 | AT31: 0 | AU31: 0 | AV31: 0 | AW31: 0 | AX31: 0 | AY31: 0 | BB31: =1+BB30 -> 15 | BC31: OTHER | BD31: 0 | BE31: 0 | BF31: 0 | BG31: 0 | BH31: 0 | BI31: 0 | BJ31: 0 | BK31: 0 | BL31: 0 | BN31: 0 | BO31: =E31+BN31 -> 7329
C32: =1+C31 -> 16 | D32: TOTAL REGIONAL MARKET EXPENSES | E32: =SUM(E30:E31) -> 7329 | F32: 0 | G32: 0 | H32: 0 | I32: 0 | J32: =SUM(J30:J31) -> 0 | K32: =SUM(K30:K31) -> 0 | L32: =SUM(L30:L31) -> 0 | M32: =SUM(M30:M31) -> 0 | N32: 0 | Q32: =1+Q31 -> 16 | R32: TOTAL REGIONAL MARKET EXPENSES | S32: =SUM(S30:S31) -> 0 | T32: =SUM(T30:T31) -> 0 | U32: =SUM(U30:U31) -> 0 | V32: =SUM(V30:V31) -> 0 | W32: =SUM(W30:W31) -> 0 | X32: =SUM(X30:X31) -> 0 | Y32: 0 | Z32: =SUM(Z30:Z31) -> 0 | AA32: 0 | AD32: =1+AD31 -> 16 | AE32: TOTAL REGIONAL MARKET EXPENSES | AF32: =SUM(AF30:AF31) -> 0 | AG32: =SUM(AG30:AG31) -> 0 | AH32: =SUM(AH30:AH31) -> 0 | AI32: 0 | AJ32: =SUM(AJ30:AJ31) -> 0 | AK32: 0 | AL32: =SUM(AL30:AL31) -> 0 | AO32: =1+AO31 -> 16 | AP32: TOTAL REGIONAL MARKET EXPENSES | AQ32: =SUM(AQ30:AQ31) -> 0 | AR32: =SUM(AR30:AR31) -> 0 | AS32: =SUM(AS30:AS31) -> 0 | AT32: =SUM(AT30:AT31) -> 0 | AU32: =SUM(AU30:AU31) -> 0 | AV32: 0 | AW32: =SUM(AW30:AW31) -> 0 | AX32: =SUM(AX30:AX31) -> 0 | AY32: 0 | BB32: =1+BB31 -> 16 | BC32: TOTAL REGIONAL MARKET EXPENSES | BD32: =SUM(BD30:BD31) -> 0 | BE32: 0 | BF32: =SUM(BF30:BF31) -> 0 | BG32: =SUM(BG30:BG31) -> 0 | BH32: =SUM(BH30:BH31) -> 0 | BI32: =SUM(BI30:BI31) -> 0 | BJ32: =SUM(BJ30:BJ31) -> 0 | BK32: 0 | BL32: 0 | BN32: =SUM(BN30:BN31) -> 0 | BO32: =SUM(BO30:BO31) -> 7329
D34: DISTRIBUTION EXPENSES: | R34: DISTRIBUTION EXPENSES: | AE34: DISTRIBUTION EXPENSES: | AP34: DISTRIBUTION EXPENSES: | BC34: DISTRIBUTION EXPENSES:
C35: =1+C32 -> 17 | D35: LABOR | E35: 63117 | F35: 1319 | G35: -700 | H35: -327 | I35: 0 | J35: 0 | K35: 0 | L35: 0 | M35: 0 | N35: 0 | Q35: =1+Q32 -> 17 | R35: LABOR | S35: 0 | T35: 0 | U35: 0 | V35: 0 | W35: 0 | X35: 0 | Y35: 0 | Z35: 0 | AA35: 0 | AD35: =1+AD32 -> 17 | AE35: LABOR | AF35: 0 | AG35: 0 | AH35: 0 | AI35: 0 | AJ35: 0 | AK35: 0 | AL35: 0 | AO35: =1+AO32 -> 17 | AP35: LABOR | AQ35: 0 | AR35: 0 | AS35: 0 | AT35: 0 | AU35: 0 | AV35: 0 | AW35: 0 | AX35: 0 | AY35: 0 | BB35: =1+BB32 -> 17 | BC35: LABOR | BD35: 0 | BE35: 0 | BF35: 0 | BG35: 0 | BH35: 0 | BI35: 0 | BJ35: 0 | BK35: 0 | BL35: 0 | BN35: =SUM(F35:N35,S35:AA35,AF35:AL35,AQ35:AY35,BD35:BM35) -> 292 | BO35: =E35+BN35 -> 63409
C36: =1+C35 -> 18 | D36: OTHER | E36: 78878 | F36: 0 | G36: 0 | H36: 0 | I36: 0 | J36: 0 | K36: 0 | L36: 0 | M36: 0 | N36: 0 | Q36: =1+Q35 -> 18 | R36: OTHER | S36: 0 | T36: 0 | U36: 0 | V36: 0 | W36: 0 | X36: 0 | Y36: 0 | Z36: -436 | AA36: 1204 | AD36: =1+AD35 -> 18 | AE36: OTHER | AF36: 3458 | AG36: 0 | AH36: 0 | AI36: 0 | AJ36: 0 | AK36: 0 | AL36: 0 | AO36: =1+AO35 -> 18 | AP36: OTHER | AQ36: 0 | AR36: 0 | AS36: 0 | AT36: 0 | AU36: 0 | AV36: -3 | AW36: 0 | AX36: 0 | AY36: 0 | BB36: =1+BB35 -> 18 | BC36: OTHER | BD36: 0 | BE36: 0 | BF36: 0 | BG36: 13 | BH36: -4950 | BI36: 0 | BJ36: 0 | BK36: 0 | BL36: 0 | BN36: -714 | BO36: =E36+BN36 -> 78164
C37: =1+C36 -> 19 | D37: TOTAL DISTRIBUTION EXPENSES | E37: =SUM(E35:E36) -> 141995 | F37: 1319 | G37: -700 | H37: -327 | I37: 0 | J37: =SUM(J35:J36) -> 0 | K37: =SUM(K35:K36) -> 0 | L37: =SUM(L35:L36) -> 0 | M37: =SUM(M35:M36) -> 0 | N37: 0 | Q37: =1+Q36 -> 19 | R37: TOTAL DISTRIBUTION EXPENSES | S37: =SUM(S35:S36) -> 0 | T37: =SUM(T35:T36) -> 0 | U37: =SUM(U35:U36) -> 0 | V37: =SUM(V35:V36) -> 0 | W37: =SUM(W35:W36) -> 0 | X37: =SUM(X35:X36) -> 0 | Y37: 0 | Z37: =SUM(Z35:Z36) -> -436 | AA37: 1204 | AD37: =1+AD36 -> 19 | AE37: TOTAL DISTRIBUTION EXPENSES | AF37: =SUM(AF35:AF36) -> 3458 | AG37: =SUM(AG35:AG36) -> 0 | AH37: =SUM(AH35:AH36) -> 0 | AI37: 0 | AJ37: =SUM(AJ35:AJ36) -> 0 | AK37: 0 | AL37: =SUM(AL35:AL36) -> 0 | AO37: =1+AO36 -> 19 | AP37: TOTAL DISTRIBUTION EXPENSES | AQ37: =SUM(AQ35:AQ36) -> 0 | AR37: =SUM(AR35:AR36) -> 0 | AS37: =SUM(AS35:AS36) -> 0 | AT37: =SUM(AT35:AT36) -> 0 | AU37: =SUM(AU35:AU36) -> 0 | AV37: -3 | AW37: =SUM(AW35:AW36) -> 0 | AX37: =SUM(AX35:AX36) -> 0 | AY37: 0 | BB37: =1+BB36 -> 19 | BC37: TOTAL DISTRIBUTION EXPENSES | BD37: =SUM(BD35:BD36) -> 0 | BE37: 0 | BF37: =SUM(BF35:BF36) -> 0 | BG37: =SUM(BG35:BG36) -> 13 | BH37: =SUM(BH35:BH36) -> -4950 | BI37: =SUM(BI35:BI36) -> 0 | BJ37: =SUM(BJ35:BJ36) -> 0 | BK37: 0 | BL37: 0 | BN37: =SUM(BN35:BN36) -> -422 | BO37: =SUM(BO35:BO36) -> 141573
D39: CUSTOMER ACCOUNTING EXPENSES: | R39: CUSTOMER ACCOUNTING EXPENSES: | AE39: CUSTOMER ACCOUNTING EXPENSES: | AP39: CUSTOMER ACCOUNTING EXPENSES: | BC39: CUSTOMER ACCOUNTING EXPENSES:
C40: =1+C37 -> 20 | D40: LABOR | E40: 21078 | F40: 457 | G40: -234 | H40: -100 | I40: 0 | J40: 0 | K40: 0 | L40: 0 | M40: 0 | N40: 0 | Q40: =1+Q37 -> 20 | R40: LABOR | S40: 0 | T40: 0 | U40: 0 | V40: 0 | W40: 0 | X40: 0 | Y40: 0 | Z40: 0 | AA40: 0 | AD40: =1+AD37 -> 20 | AE40: LABOR | AF40: 0 | AG40: 0 | AH40: 0 | AI40: 0 | AJ40: 0 | AK40: 0 | AL40: 0 | AO40: =1+AO37 -> 20 | AP40: LABOR | AQ40: 0 | AR40: 0 | AS40: 0 | AT40: 0 | AU40: 0 | AV40: 0 | AW40: 0 | AX40: 0 | AY40: 0 | BB40: =1+BB37 -> 20 | BC40: LABOR | BD40: 0 | BE40: 0 | BF40: 0 | BG40: 0 | BH40: 0 | BI40: 0 | BJ40: 0 | BK40: 0 | BL40: 0 | BN40: =SUM(F40:N40,S40:AA40,AF40:AL40,AQ40:AY40,BD40:BM40) -> 123 | BO40: =E40+BN40 -> 21201
C41: =1+C40 -> 21 | D41: OTHER | E41: 43502 | F41: 0 | G41: 0 | H41: 0 | I41: 0 | J41: 0 | K41: 0 | L41: 0 | M41: 0 | N41: 0 | Q41: =1+Q40 -> 21 | R41: OTHER | S41: 0 | T41: 0 | U41: 0 | V41: 0 | W41: 0 | X41: 0 | Y41: 0 | Z41: 0 | AA41: 0 | AD41: =1+AD40 -> 21 | AE41: OTHER | AF41: 0 | AG41: 1063 | AH41: 0 | AI41: 0 | AJ41: -6546 | AK41: 0 | AL41: 0 | AO41: =1+AO40 -> 21 | AP41: OTHER | AQ41: 0 | AR41: 0 | AS41: 0 | AT41: 0 | AU41: 0 | AV41: 0 | AW41: 0 | AX41: 0 | AY41: 0 | BB41: =1+BB40 -> 21 | BC41: OTHER | BD41: 0 | BE41: 0 | BF41: 0 | BG41: 1 | BH41: -85 | BI41: 0 | BJ41: 0 | BK41: 4676 | BL41: 0 | BN41: -891 | BO41: =E41+BN41 -> 42611
C42: =1+C41 -> 22 | D42: TOTAL CUSTOMER ACCOUNTING EXPENSES | E42: =SUM(E40:E41) -> 64580 | F42: 457 | G42: -234 | H42: -100 | I42: 0 | J42: =SUM(J40:J41) -> 0 | K42: =SUM(K40:K41) -> 0 | L42: =SUM(L40:L41) -> 0 | M42: =SUM(M40:M41) -> 0 | N42: 0 | Q42: =1+Q41 -> 22 | R42: TOTAL CUSTOMER ACCOUNTING EXPENSES | S42: =SUM(S40:S41) -> 0 | T42: =SUM(T40:T41) -> 0 | U42: =SUM(U40:U41) -> 0 | V42: =SUM(V40:V41) -> 0 | W42: =SUM(W40:W41) -> 0 | X42: =SUM(X40:X41) -> 0 | Y42: 0 | Z42: =SUM(Z40:Z41) -> 0 | AA42: 0 | AD42: =1+AD41 -> 22 | AE42: TOTAL CUSTOMER ACCOUNTING EXPENSES | AF42: =SUM(AF40:AF41) -> 0 | AG42: =SUM(AG40:AG41) -> 1063 | AH42: =SUM(AH40:AH41) -> 0 | AI42: 0 | AJ42: =SUM(AJ40:AJ41) -> -6546 | AK42: 0 | AL42: =SUM(AL40:AL41) -> 0 | AO42: =1+AO41 -> 22 | AP42: TOTAL CUSTOMER ACCOUNTING EXPENSES | AQ42: =SUM(AQ40:AQ41) -> 0 | AR42: =SUM(AR40:AR41) -> 0 | AS42: =SUM(AS40:AS41) -> 0 | AT42: =SUM(AT40:AT41) -> 0 | AU42: =SUM(AU40:AU41) -> 0 | AV42: 0 | AW42: =SUM(AW40:AW41) -> 0 | AX42: =SUM(AX40:AX41) -> 0 | AY42: 0 | BB42: =1+BB41 -> 22 | BC42: TOTAL CUSTOMER ACCOUNTING EXPENSES | BD42: =SUM(BD40:BD41) -> 0 | BE42: 0 | BF42: =SUM(BF40:BF41) -> 0 | BG42: =SUM(BG40:BG41) -> 1 | BH42: =SUM(BH40:BH41) -> -85 | BI42: =SUM(BI40:BI41) -> 0 | BJ42: =SUM(BJ40:BJ41) -> 0 | BK42: 4676 | BL42: 0 | BN42: =SUM(BN40:BN41) -> -768 | BO42: =SUM(BO40:BO41) -> 63812
D44: CUSTOMER SERV. & INFO. EXPENSES: | R44: CUSTOMER SERV. & INFO. EXPENSES: | AE44: CUSTOMER SERV. & INFO. EXPENSES: | AP44: CUSTOMER SERV. & INFO. EXPENSES: | BC44: CUSTOMER SERV. & INFO. EXPENSES:
A45: SCHEDULE MJL-D11-1 | C45: =1+C42 -> 23 | D45: LABOR | E45: 6936 | F45: 106 | G45: -76 | H45: -131 | I45: 0 | J45: 0 | K45: 0 | L45: 0 | M45: 0 | N45: 0 | O45: SCHEDULE MJL-D11-2 | Q45: =1+Q42 -> 23 | R45: LABOR | S45: 0 | T45: 0 | U45: 0 | V45: 0 | W45: 0 | X45: 0 | Y45: 0 | Z45: 0 | AA45: 0 | AB45: SCHEDULE MJL-D11-3 | AD45: =1+AD42 -> 23 | AE45: LABOR | AF45: 0 | AG45: 0 | AH45: 0 | AI45: 0 | AJ45: 0 | AK45: 0 | AL45: 0 | AM45: SCHEDULE MJL-D11-4 | AO45: =1+AO42 -> 23 | AP45: LABOR | AQ45: 0 | AR45: 0 | AS45: 0 | AT45: 0 | AU45: 0 | AV45: 0 | AW45: 0 | AX45: 0 | AY45: 0 | AZ45: SCHEDULE MJL-D11-5 | BB45: =1+BB42 -> 23 | BC45: LABOR | BD45: 0 | BE45: 0 | BF45: 0 | BG45: 0 | BH45: 0 | BI45: 0 | BJ45: 0 | BK45: 0 | BL45: 0 | BN45: =SUM(F45:N45,S45:AA45,AF45:AL45,AQ45:AY45,BD45:BM45) -> -101 | BO45: =E45+BN45 -> 6835
C46: =1+C45 -> 24 | D46: OTHER | E46: 79410 | F46: 0 | G46: 0 | H46: 0 | I46: 0 | J46: 0 | K46: 0 | L46: 0 | M46: 0 | N46: 0 | Q46: =1+Q45 -> 24 | R46: OTHER | S46: 0 | T46: 0 | U46: 0 | V46: 0 | W46: 0 | X46: -5961 | Y46: 1594 | Z46: 0 | AA46: 0 | AD46: =1+AD45 -> 24 | AE46: OTHER | AF46: 0 | AG46: 0 | AH46: -68750 | AI46: 0 | AJ46: 0 | AK46: 0 | AL46: 0 | AO46: =1+AO45 -> 24 | AP46: OTHER | AQ46: 0 | AR46: 0 | AS46: 0 | AT46: 0 | AU46: 2380 | AV46: -1 | AW46: 0 | AX46: 0 | AY46: 0 | BB46: =1+BB45 -> 24 | BC46: OTHER | BD46: 0 | BE46: 0 | BF46: 0 | BG46: 1 | BH46: 0 | BI46: 0 | BJ46: 0 | BK46: 0 | BL46: 0 | BN46: -70737 | BO46: =E46+BN46 -> 8673
C47: =1+C46 -> 25 | D47: TOTAL CUSTOMER SERV. & INFO. EXPENSES | E47: =SUM(E45:E46) -> 86346 | F47: 106 | G47: -76 | H47: -131 | I47: 0 | J47: =SUM(J45:J46) -> 0 | K47: =SUM(K45:K46) -> 0 | L47: =SUM(L45:L46) -> 0 | M47: =SUM(M45:M46) -> 0 | N47: 0 | Q47: =1+Q46 -> 25 | R47: TOTAL CUSTOMER SERV. & INFO. EXPENSES | S47: =SUM(S45:S46) -> 0 | T47: =SUM(T45:T46) -> 0 | U47: =SUM(U45:U46) -> 0 | V47: =SUM(V45:V46) -> 0 | W47: =SUM(W45:W46) -> 0 | X47: =SUM(X45:X46) -> -5961 | Y47: 1594 | Z47: =SUM(Z45:Z46) -> 0 | AA47: 0 | AD47: =1+AD46 -> 25 | AE47: TOTAL CUSTOMER SERV. & INFO. EXPENSES | AF47: =SUM(AF45:AF46) -> 0 | AG47: =SUM(AG45:AG46) -> 0 | AH47: =SUM(AH45:AH46) -> -68750 | AI47: 0 | AJ47: =SUM(AJ45:AJ46) -> 0 | AK47: 0 | AL47: =SUM(AL45:AL46) -> 0 | AO47: =1+AO46 -> 25 | AP47: TOTAL CUSTOMER SERV. & INFO. EXPENSES | AQ47: =SUM(AQ45:AQ46) -> 0 | AR47: =SUM(AR45:AR46) -> 0 | AS47: =SUM(AS45:AS46) -> 0 | AT47: =SUM(AT45:AT46) -> 0 | AU47: =SUM(AU45:AU46) -> 2380 | AV47: -1 | AW47: =SUM(AW45:AW46) -> 0 | AX47: =SUM(AX45:AX46) -> 0 | AY47: 0 | BB47: =1+BB46 -> 25 | BC47: TOTAL CUSTOMER SERV. & INFO. EXPENSES | BD47: =SUM(BD45:BD46) -> 0 | BE47: 0 | BF47: =SUM(BF45:BF46) -> 0 | BG47: =SUM(BG45:BG46) -> 1 | BH47: =SUM(BH45:BH46) -> 0 | BI47: =SUM(BI45:BI46) -> 0 | BJ47: =SUM(BJ45:BJ46) -> 0 | BK47: 0 | BL47: 0 | BN47: =SUM(BN45:BN46) -> -70838 | BO47: =SUM(BO45:BO46) -> 15508
D49: SALES EXPENSES: | R49: SALES EXPENSES: | AE49: SALES EXPENSES: | AP49: SALES EXPENSES: | BC49: SALES EXPENSES:
C50: =1+C47 -> 26 | D50: LABOR | E50: 185 | F50: 3 | G50: -2 | H50: 0 | I50: 0 | J50: 0 | K50: 0 | L50: 0 | M50: 0 | N50: 0 | Q50: =1+Q47 -> 26 | R50: LABOR | S50: 0 | T50: 0 | U50: 0 | V50: 0 | W50: 0 | X50: 0 | Y50: 0 | Z50: 0 | AA50: 0 | AD50: =1+AD47 -> 26 | AE50: LABOR | AF50: 0 | AG50: 0 | AH50: 0 | AI50: 0 | AJ50: 0 | AK50: 0 | AL50: 0 | AO50: =1+AO47 -> 26 | AP50: LABOR | AQ50: 0 | AR50: 0 | AS50: 0 | AT50: 0 | AU50: 0 | AV50: 0 | AW50: 0 | AX50: 0 | AY50: 0 | BB50: =1+BB47 -> 26 | BC50: LABOR | BD50: 0 | BE50: 0 | BF50: 0 | BG50: 0 | BH50: 0 | BI50: 0 | BJ50: 0 | BK50: 0 | BL50: 0 | BN50: =SUM(F50:N50,S50:AA50,AF50:AL50,AQ50:AY50,BD50:BM50) -> 1 | BO50: =E50+BN50 -> 186
C51: =1+C50 -> 27 | D51: OTHER | E51: 95 | F51: 0 | G51: 0 | H51: 0 | I51: 0 | J51: 0 | K51: 0 | L51: 0 | M51: 0 | N51: 0 | Q51: =1+Q50 -> 27 | R51: OTHER | S51: 0 | T51: 0 | U51: 0 | V51: 0 | W51: 0 | X51: 0 | Y51: 0 | Z51: 0 | AA51: 0 | AD51: =1+AD50 -> 27 | AE51: OTHER | AF51: 0 | AG51: 0 | AH51: 0 | AI51: 0 | AJ51: 0 | AK51: 0 | AL51: 0 | AO51: =1+AO50 -> 27 | AP51: OTHER | AQ51: 0 | AR51: 0 | AS51: 0 | AT51: 0 | AU51: 0 | AV51: 0 | AW51: 0 | AX51: 0 | AY51: 0 | BB51: =1+BB50 -> 27 | BC51: OTHER | BD51: 0 | BE51: 0 | BF51: 0 | BG51: 0 | BH51: 0 | BI51: 0 | BJ51: 0 | BK51: 0 | BL51: 0 | BN51: 0 | BO51: =E51+BN51 -> 95
C52: =1+C51 -> 28 | D52: TOTAL SALES EXPENSES | E52: =SUM(E50:E51) -> 280 | F52: 3 | G52: -2 | H52: 0 | I52: 0 | J52: =SUM(J50:J51) -> 0 | K52: =SUM(K50:K51) -> 0 | L52: =SUM(L50:L51) -> 0 | M52: =SUM(M50:M51) -> 0 | N52: 0 | Q52: =1+Q51 -> 28 | R52: TOTAL SALES EXPENSES | S52: =SUM(S50:S51) -> 0 | T52: =SUM(T50:T51) -> 0 | U52: =SUM(U50:U51) -> 0 | V52: =SUM(V50:V51) -> 0 | W52: =SUM(W50:W51) -> 0 | X52: =SUM(X50:X51) -> 0 | Y52: 0 | Z52: =SUM(Z50:Z51) -> 0 | AA52: 0 | AD52: =1+AD51 -> 28 | AE52: TOTAL SALES EXPENSES | AF52: =SUM(AF50:AF51) -> 0 | AG52: =SUM(AG50:AG51) -> 0 | AH52: =SUM(AH50:AH51) -> 0 | AI52: 0 | AJ52: =SUM(AJ50:AJ51) -> 0 | AK52: 0 | AL52: =SUM(AL50:AL51) -> 0 | AO52: =1+AO51 -> 28 | AP52: TOTAL SALES EXPENSES | AQ52: =SUM(AQ50:AQ51) -> 0 | AR52: =SUM(AR50:AR51) -> 0 | AS52: =SUM(AS50:AS51) -> 0 | AT52: =SUM(AT50:AT51) -> 0 | AU52: =SUM(AU50:AU51) -> 0 | AV52: 0 | AW52: =SUM(AW50:AW51) -> 0 | AX52: =SUM(AX50:AX51) -> 0 | AY52: 0 | BB52: =1+BB51 -> 28 | BC52: TOTAL SALES EXPENSES | BD52: =SUM(BD50:BD51) -> 0 | BE52: 0 | BF52: =SUM(BF50:BF51) -> 0 | BG52: =SUM(BG50:BG51) -> 0 | BH52: =SUM(BH50:BH51) -> 0 | BI52: =SUM(BI50:BI51) -> 0 | BJ52: =SUM(BJ50:BJ51) -> 0 | BK52: 0 | BL52: 0 | BN52: =SUM(BN50:BN51) -> 1 | BO52: =SUM(BO50:BO51) -> 281
D54: ADMINISTRATIVE & GENERAL EXPENSES: | R54: ADMINISTRATIVE & GENERAL EXPENSES: | AE54: ADMINISTRATIVE & GENERAL EXPENSES: | AP54: ADMINISTRATIVE & GENERAL EXPENSES: | BC54: ADMINISTRATIVE & GENERAL EXPENSES:
C55: =1+C52 -> 29 | D55: LABOR | E55: 68836 | F55: 1071 | G55: -763 | H55: -2458 | I55: 10192 | J55: 0 | K55: 0 | L55: 0 | M55: 0 | N55: 0 | Q55: =1+Q52 -> 29 | R55: LABOR | S55: 0 | T55: 0 | U55: 0 | V55: 0 | W55: 0 | X55: 0 | Y55: 0 | Z55: 0 | AA55: 0 | AD55: =1+AD52 -> 29 | AE55: LABOR | AF55: 0 | AG55: 0 | AH55: 0 | AI55: 0 | AJ55: 0 | AK55: 0 | AL55: 0 | AO55: =1+AO52 -> 29 | AP55: LABOR | AQ55: 0 | AR55: 0 | AS55: 0 | AT55: 0 | AU55: 0 | AV55: 0 | AW55: 0 | AX55: 0 | AY55: 0 | BB55: =1+BB52 -> 29 | BC55: LABOR | BD55: 0 | BE55: 0 | BF55: 0 | BG55: 0 | BH55: 0 | BI55: 0 | BJ55: 0 | BK55: 0 | BL55: 0 | BN55: =SUM(F55:N55,S55:AA55,AF55:AL55,AQ55:AY55,BD55:BM55) -> 8042 | BO55: =E55+BN55 -> 76878
C56: =1+C55 -> 30 | D56: OTHER | E56: 123773 | F56: 0 | G56: 0 | H56: 0 | I56: 1539 | J56: 0 | K56: 0 | L56: 0 | M56: 0 | N56: 0 | Q56: =1+Q55 -> 30 | R56: OTHER | S56: 0 | T56: 0 | U56: 0 | V56: 0 | W56: 0 | X56: 0 | Y56: 0 | Z56: 0 | AA56: 0 | AD56: =1+AD55 -> 30 | AE56: OTHER | AF56: 0 | AG56: 0 | AH56: -742 | AI56: 189 | AJ56: 0 | AK56: 621 | AL56: 9386 | AO56: =1+AO55 -> 30 | AP56: OTHER | AQ56: 4824 | AR56: 182 | AS56: -1317 | AT56: 7312 | AU56: 0 | AV56: -6 | AW56: 140 | AX56: 302 | AY56: -349 | BB56: =1+BB55 -> 30 | BC56: OTHER | BD56: -12 | BE56: -2462 | BF56: -318 | BG56: 627 | BH56: 3993 | BI56: 4601 | BJ56: 14 | BK56: 0 | BL56: 1 | BN56: 28525 | BO56: =E56+BN56 -> 152298
C57: =1+C56 -> 31 | D57: TOTAL ADMINISTRATIVE & GENERAL EXPENSES | E57: =SUM(E55:E56) -> 192609 | F57: 1071 | G57: -763 | H57: -2458 | I57: 11731 | J57: =SUM(J55:J56) -> 0 | K57: =SUM(K55:K56) -> 0 | L57: =SUM(L55:L56) -> 0 | M57: =SUM(M55:M56) -> 0 | N57: 0 | Q57: =1+Q56 -> 31 | R57: TOTAL ADMINISTRATIVE & GENERAL EXPENSES | S57: =SUM(S55:S56) -> 0 | T57: =SUM(T55:T56) -> 0 | U57: =SUM(U55:U56) -> 0 | V57: =SUM(V55:V56) -> 0 | W57: =SUM(W55:W56) -> 0 | X57: =SUM(X55:X56) -> 0 | Y57: 0 | Z57: =SUM(Z55:Z56) -> 0 | AA57: =SUM(AA55:AA56) -> 0 | AD57: =1+AD56 -> 31 | AE57: TOTAL ADMINISTRATIVE & GENERAL EXPENSES | AF57: =SUM(AF55:AF56) -> 0 | AG57: =SUM(AG55:AG56) -> 0 | AH57: =SUM(AH55:AH56) -> -742 | AI57: 189 | AJ57: =SUM(AJ55:AJ56) -> 0 | AK57: 621 | AL57: =SUM(AL55:AL56) -> 9386 | AO57: =1+AO56 -> 31 | AP57: TOTAL ADMINISTRATIVE & GENERAL EXPENSES | AQ57: =SUM(AQ55:AQ56) -> 4824 | AR57: =SUM(AR55:AR56) -> 182 | AS57: =SUM(AS55:AS56) -> -1317 | AT57: 7312 | AU57: =SUM(AU55:AU56) -> 0 | AV57: =SUM(AV55:AV56) -> -6 | AW57: 140 | AX57: 302 | AY57: =SUM(AY55:AY56) -> -349 | BB57: =1+BB56 -> 31 | BC57: TOTAL ADMINISTRATIVE & GENERAL EXPENSES | BD57: =SUM(BD55:BD56) -> -12 | BE57: -2462 | BF57: =SUM(BF55:BF56) -> -318 | BG57: =SUM(BG55:BG56) -> 627 | BH57: =SUM(BH55:BH56) -> 3993 | BI57: =SUM(BI55:BI56) -> 4601 | BJ57: =SUM(BJ55:BJ56) -> 14 | BK57: 0 | BL57: 1 | BN57: =SUM(BN55:BN56) -> 36567 | BO57: =SUM(BO55:BO56) -> 229176
C59: =1+C57 -> 32 | D59: TOTAL OPERATIONS & MAINTENANCE EXPENSES | E59: =E22+E27+E32+E37+E42+E47+E52+E57 -> 1446015 | F59: =F22+F27+F32+F37+F42+F47+F52+F57 -> 7203 | G59: -4110 | H59: -4318 | I59: 11731 | J59: =J22+J27+J32+J37+J42+J47+J52+J57 -> 64978 | K59: =K22+K27+K32+K37+K42+K47+K52+K57 -> -7104 | L59: =L22+L27+L32+L37+L42+L47+L52+L57 -> -160 | M59: =M22+M27+M32+M37+M42+M47+M52+M57 -> 21260 | N59: 8920 | Q59: =1+Q57 -> 32 | R59: TOTAL OPERATIONS & MAINTENANCE EXPENSES | S59: =S22+S27+S32+S37+S42+S47+S52+S57 -> -2070 | T59: =T22+T27+T32+T37+T42+T47+T52+T57 -> 49057 | U59: =U22+U27+U32+U37+U42+U47+U52+U57 -> 25645 | V59: =V22+V27+V32+V37+V42+V47+V52+V57 -> 3664 | W59: =W22+W27+W32+W37+W42+W47+W52+W57 -> 1375 | X59: =X22+X27+X32+X37+X42+X47+X52+X57 -> -5961 | Y59: 1594 | Z59: =Z22+Z27+Z32+Z37+Z42+Z47+Z52+Z57 -> -829 | AA59: 1204 | AD59: =1+AD57 -> 32 | AE59: TOTAL OPERATIONS & MAINTENANCE EXPENSES | AF59: =AF22+AF27+AF32+AF37+AF42+AF47+AF52+AF57 -> 3458 | AG59: =AG22+AG27+AG32+AG37+AG42+AG47+AG52+AG57 -> 1063 | AH59: -69492 | AI59: =AI22+AI27+AI32+AI37+AI42+AI47+AI52+AI57 -> 189 | AJ59: -6546 | AK59: 621 | AL59: =AL22+AL27+AL32+AL37+AL42+AL47+AL52+AL57 -> 9386 | AO59: =1+AO57 -> 32 | AP59: TOTAL OPERATIONS & MAINTENANCE EXPENSES | AQ59: =AQ22+AQ27+AQ32+AQ37+AQ42+AQ47+AQ52+AQ57 -> 4824 | AR59: =AR22+AR27+AR32+AR37+AR42+AR47+AR52+AR57 -> 182 | AS59: =AS22+AS27+AS32+AS37+AS42+AS47+AS52+AS57 -> -1317 | AT59: 7312 | AU59: =AU22+AU27+AU32+AU37+AU42+AU47+AU52+AU57 -> 24639 | AV59: =AV22+AV27+AV32+AV37+AV42+AV47+AV52+AV57 -> -15 | AW59: 140 | AX59: 302 | AY59: =AY22+AY27+AY32+AY37+AY42+AY47+AY52+AY57 -> -349 | BB59: =1+BB57 -> 32 | BC59: TOTAL OPERATIONS & MAINTENANCE EXPENSES | BD59: -12 | BE59: =BE22+BE27+BE32+BE37+BE42+BE47+BE52+BE57 -> -2462 | BF59: =BF22+BF27+BF32+BF37+BF42+BF47+BF52+BF57 -> -318 | BG59: =BG22+BG27+BG32+BG37+BG42+BG47+BG52+BG57 -> 137 | BH59: =BH22+BH27+BH32+BH37+BH42+BH47+BH52+BH57 -> -5473 | BI59: =BI22+BI27+BI32+BI37+BI42+BI47+BI52+BI57 -> 4601 | BJ59: =BJ22+BJ27+BJ32+BJ37+BJ42+BJ47+BJ52+BJ57 -> 14 | BK59: 4676 | BL59: 1 | BN59: =BN22+BN27+BN32+BN37+BN42+BN47+BN52+BN57 -> 147640 | BO59: =BO22+BO27+BO32+BO37+BO42+BO47+BO52+BO57 -> 1593655
C61: =1+C59 -> 33 | D61: NOTE: See SCHEDULE MJL-D11-6 for explanation of the pro forma adjustments. | Q61: =1+Q59 -> 33 | R61: NOTE: See SCHEDULE MJL-D11-6 for explanation of the pro forma adjustments. | AD61: =1+AD59 -> 33 | AE61: NOTE: See SCHEDULE MJL-D11-6 for explanation of the pro forma adjustments. | AO61: =1+AO59 -> 33 | AP61: NOTE: See SCHEDULE MJL-D11-6 for explanation of the pro forma adjustments. | BB61: =1+BB59 -> 33 | BC61: NOTE: See SCHEDULE MJL-D11-6 for explanation of the pro forma adjustments.

Sheet SCHEDULE MJL-D11-6
A1: AMEREN MISSOURI
A2: ELECTRIC OPERATING AND MAINTENANCE EXPENSE
A3: PRO FORMA ADJUSTMENTS
A4: ='SCHEDULE MJL-D5'!A3 -> FOR THE TWELVE MONTHS ENDED DECEMBER 31, 2020
A5: ($000)
B6: PRO FORMA | L6: TOTAL
A7: LINE | B7: ITEM NO. | C7: DESCRIPTION | L7: AMOUNT
B8: (A) | C8: (B) | L8: (C)
A10: 1 | B10: -1 | C10: Increased labor expense from annualizing the average 1.83% wage increase for management employees effective January 1, 2021, and the 2.50% wage increase for the Company's union employees effective January 1, 2021 per the labor contracts. | L10: ='SCHEDULE MJL-D11-1'!F59 -> 7203
A11: =1+A10 -> 2
A12: =1+A11 -> 3
A14: =1+A12 -> 4 | B14: -2 | C14: Decrease the incentive compensation expense for the incentive compensation applicable to AMS and Ameren Missouri officers related to earnings. | L14: ='SCHEDULE MJL-D11-1'!G59 -> -4110
A15: =1+A14 -> 5
A17: =1+A15 -> 6 | B17: -3 | C17: Eliminate the long term incentive compensation expense related to earnings. | L17: ='SCHEDULE MJL-D11-1'!H59 -> -4318
A19: =A17+1 -> 7 | B19: (4) | C19: Increase administrative and general expenses for staffing annualization of salary and benefits. | L19: ='SCHEDULE MJL-D11-1'!I59 -> 11731
A22: =1+A19 -> 8 | B22: -5 | C22: Increase in fuel expense to reflect the normalized sales and customer growth through September 30, 2021 reflecting January 2021 fuel prices. | L22: ='SCHEDULE MJL-D11-1'!J59 -> 64978
A23: =1+A22 -> 9
A25: =1+A23 -> 10 | B25: -6 | C25: Decrease in purchased power expense to reflect normalized sales and customer growth through September 30, 2021 and normalized power prices. | L25: ='SCHEDULE MJL-D11-1'!K59 -> -7104
A26: =1+A25 -> 11
A28: =1+A26 -> 12 | B28: -7 | C28: Decrease in transmission expense related to Mark Twain Transmission project. | L28: ='SCHEDULE MJL-D11-1'!L59 -> -160
A30: =1+A28 -> 13 | B30: -8 | C30: Increase the coal handling costs to reflect the elimination of the coal refinement process. | L30: ='SCHEDULE MJL-D11-1'!M59 -> 21260
A32: =1+A30 -> 14 | B32: -9 | C32: Increase in production expense to normalize steam plant maintenance. | L32: ='SCHEDULE MJL-D11-1'!N59 -> 8920
A34: =1+A32 -> 15 | B34: -10 | C34: Decrease in production expense to remove a portion of production expense related to Meramec Energy Center. | L34: ='SCHEDULE MJL-D11-1'!S59 -> -2070
A36: =1+A34 -> 16 | B36: -11 | C36: Eliminate test year FAC recovery | L36: ='SCHEDULE MJL-D11-1'!T59 -> 49057
A38: =1+A36 -> 17 | B38: -12 | C38: Increase to the nuclear production expense to include the annualized amount of the last 3 Callaway | L38: ='SCHEDULE MJL-D11-1'!U59 -> 25645
A39: =1+A38 -> 18 | C39: Nuclear Plant refueling expenses.
A41: =1+A39 -> 19 | B41: -13 | C41: Increase in production expenses for amortization of RES cost regulatory liability. | L41: ='SCHEDULE MJL-D11-1'!V59 -> 3664
A43: =1+A41 -> 20 | B43: -14 | C43: Increase in production expenses for rebase of RES expenses | L43: ='SCHEDULE MJL-D11-1'!W59 -> 1375
A45: =1+A43 -> 21 | B45: -15 | C45: Decrease in production expenses to eliminate Solar Rebate amortizations in the test year. | L45: ='SCHEDULE MJL-D11-1'!X59 -> -5961
A47: =1+A45 -> 22 | B47: -16 | C47: Increase in production expenses for Solar Rebate amortizations. | L47: ='SCHEDULE MJL-D11-1'!Y59 -> 1594
A49: =1+A47 -> 23 | B49: -17 | C49: Decrease in production and distribution expenses for decrease in depreciation charged to O&M. | L49: ='SCHEDULE MJL-D11-1'!Z59 -> -829
A51: =1+A49 -> 24 | B51: -18 | C51: Increase in distribution expense to normalize storm costs. | L51: ='SCHEDULE MJL-D11-1'!AA59 -> 1204
A53: =1+A51 -> 25 | B53: -19 | C53: Increase in distribution expense to normalize vegetation and infrastructure inspections. | L53: ='SCHEDULE MJL-D11-1'!AF59 -> 3458
A55: =1+A53 -> 26 | B55: -20 | C55: Increase in customer accounting expenses to reflect interest expense at 4.25% on the average customer deposit | L55: ='SCHEDULE MJL-D11-1'!AG59 -> 1063
A56: =1+A55 -> 27 | C56: balance.
A58: =A56+1 -> 28 | B58: -21 | C58: Decrease in customer service to eliminate test year MEEIA program costs. | L58: ='SCHEDULE MJL-D11-1'!AH59 -> -69492
A60: =1+A58 -> 29 | B60: -22 | C60: Increase in janitorial costs as a result of the COVID-19 pandemic. | L60: ='SCHEDULE MJL-D11-1'!AI59 -> 189
A62: =1+A60 -> 30 | B62: -23 | C62: Decrease in administrative and general expenses to normalize bad debt expense. | L62: ='SCHEDULE MJL-D11-1'!AJ59 -> -6546
A64: =1+A62 -> 31 | B64: -24 | C64: Increase in administrative and general expenses to annualize EEI dues. | L64: ='SCHEDULE MJL-D11-1'!AK59 -> 621
A66: =1+A64 -> 32 | B66: -25 | C66: Annualize insurance expense based upon current insurance premiums. | L66: ='SCHEDULE MJL-D11-1'!AL59 -> 9386
A68: =1+A66 -> 33 | B68: -26 | C68: Increase administrative and general expenses to reflect annualized major medical and other employee benefit expenses through September 30, 2021. | L68: ='SCHEDULE MJL-D11-1'!AQ59 -> 4824
A69: =1+A68 -> 34
A71: =1+A69 -> 35 | B71: -27 | C71: Increase non-qualified pension expense to reflect current level of expense. | L71: ='SCHEDULE MJL-D11-1'!AR59 -> 182
A73: =1+A71 -> 36 | B73: -28 | C73: Rebase Pension and OPEB Tracker to true up level. | L73: ='SCHEDULE MJL-D11-1'!AS59 -> -1317
A75: =1+A73 -> 37 | B75: -29 | C75: Increase the amortization of the net regulatory liabilities for Pension and OPEB Tracker. | L75: ='SCHEDULE MJL-D11-1'!AT59 -> 7312
A77: =1+A75 -> 38 | B77: (30) | C77: Increase in operating and maintenance expense for base level expenses related to RESRAM. | L77: ='SCHEDULE MJL-D11-1'!AU59 -> 24639
A79: =1+A77 -> 39 | B79: -31 | C79: Reduce expenses for alcohol purchases. | L79: ='SCHEDULE MJL-D11-1'!AV59 -> -15
A81: =1+A79 -> 40 | B81: -32 | C81: Increase administrative and general expenses to reflect the 3 case average of expenses to prepare and litigate this rate filings and annualize the amount. | L81: ='SCHEDULE MJL-D11-1'!AW59 -> 140
A82: =1+A81 -> 41
A84: =1+A82 -> 42 | B84: -33 | C84: Increase administrative and general expenses to annualize MPSC Assessment. | L84: ='SCHEDULE MJL-D11-1'!AX59 -> 302
A86: =1+A84 -> 43 | B86: -34 | C86: Decrease administrative and general expenses for certain Board of Director meeting expenses. | L86: ='SCHEDULE MJL-D11-1'!AY59 -> -349
A88: =1+A86 -> 44 | B88: -35 | C88: Decrease administrative and general expense to normalize depreciation study expense. | L88: ='SCHEDULE MJL-D11-1'!BD59 -> -12
A90: =1+A88 -> 45 | B90: -36 | C90: Decrease administrative and general expense to remove Bank of America lease costs. | L90: ='SCHEDULE MJL-D11-1'!BE59 -> -2462
A92: =1+A90 -> 46 | B92: -37 | C92: Decrease administrative and general expenses for software rental expense | L92: ='SCHEDULE MJL-D11-1'!BF59 -> -318
A94: =1+A92 -> 47 | B94: -38 | C94: Increase administrative and general expense to utilize 2021 allocation factors. | L94: ='SCHEDULE MJL-D11-1'!BG59 -> 137
A96: =1+A94 -> 48 | B96: (39) | C96: Decrease administrative and general expense to remove extraordinary impact of COVID-19 expenses addressed in AAO deferral. | L96: ='SCHEDULE MJL-D11-1'!BH59 -> -5473
A98: =1+A96 -> 49 | B98: (40) | C98: Increase administrative and general expense to normalize the Company-Owned Life Insurance (COLI) expense. | L98: ='SCHEDULE MJL-D11-1'!BI59 -> 4601
A100: =1+A98 -> 50 | B100: (41) | C100: Increase administrative and general expenses for electric costs allocated to gas. | L100: ='SCHEDULE MJL-D11-1'!BJ59 -> 14
A102: =1+A100 -> 51 | B102: (42) | C102: Increase in operating and maintenance expense for customer convenience fees. | L102: ='SCHEDULE MJL-D11-1'!BK59 -> 4676
A104: =1+A102 -> 52 | B104: (43) | C104: Increase administrative and general expense for the EV incentive program. | L104: ='SCHEDULE MJL-D11-1'!BL59 -> 1
B107: Total Pro Forma Adjustments to Electric Operating and Maintenance Expenses
L108: =SUM(L10:L107) -> 147640

Sheet SCHEDULE MJL-D12-1
A1: AMEREN MISSOURI
B2: DEPRECIATION & AMORTIZATION EXPENSE
B3: FOR THE TWELVE MONTHS ENDED DECEMBER 31, 2020
B4: ($000)
D6: TOTALS | F6: PRO FORMA
D7: PER | E7: PRO FORMA | F7: ELECTRIC
B8: LINE | C8: DESCRIPTION | D8: BOOKS | E8: ADJUSTMENTS(1) | F8: TOTALS
C9: (A) | D9: (B) | E9: (C) | F9: (D)
C11: DEPRECIATION EXPENSE:
B12: =1 -> 1 | C12: STEAM | D12: 169077 | E12: =+'SCHEDULE MJL-D12-2'!E15+'SCHEDULE MJL-D12-2'!E28+'SCHEDULE MJL-D12-2'!E45 -> 56434 | F12: =SUM(D12:E12) -> 225511
B13: =1+B12 -> 2 | C13: NUCLEAR | D13: 78518 | E13: =+'SCHEDULE MJL-D12-2'!E16+'SCHEDULE MJL-D12-2'!E29 -> 10253 | F13: 88771
B14: 3 | C14: CALLAWAY DECOMMISSIONING | D14: 6759 | E14: 0 | F14: 6759
B15: 4 | C15: HYDRAULIC | D15: 12405 | E15: =+'SCHEDULE MJL-D12-2'!E17+'SCHEDULE MJL-D12-2'!E30 -> 3254 | F15: 15659
B16: 5 | C16: OTHER | D16: 29816 | E16: =+'SCHEDULE MJL-D12-2'!E18+'SCHEDULE MJL-D12-2'!E31 -> 34950 | F16: 64766
B17: 6 | C17: TRANSMISSION PLANT | D17: 37099 | E17: =+'SCHEDULE MJL-D12-2'!E19+'SCHEDULE MJL-D12-2'!E32 -> 499 | F17: 37598
B18: 7 | C18: DISTRIBUTION PLANT | D18: 193395 | E18: =+'SCHEDULE MJL-D12-2'!E20+'SCHEDULE MJL-D12-2'!E33 -> 25552 | F18: 218947
B19: 8 | C19: GENERAL PLANT | D19: 31789 | E19: =+'SCHEDULE MJL-D12-2'!E21+'SCHEDULE MJL-D12-2'!E34+'SCHEDULE MJL-D12-2'!E46 -> 8076 | F19: 39865
B20: 9 | C20: PISA | D20: -14576 | E20: =+'SCHEDULE MJL-D12-2'!E39 -> 14576 | F20: 0
B21: 10 | C21: ICC DEPRECIATION | D21: 0 | E21: =+'SCHEDULE MJL-D12-2'!E22 -> -1394 | F21: =SUM(D21:E21) -> -1394
B23: =1+B21 -> 11 | C23: TOTAL DEPRECIATION EXPENSE | D23: =SUM(D12:D22) -> 544282 | E23: =SUM(E12:E22) -> 152200 | F23: =SUM(F12:F22) -> 696482
C25: PLANT AMORTIZATION:
B26: =1+B23 -> 12 | C26: INTANGIBLE PLANT | D26: 48716 | E26: =+'SCHEDULE MJL-D12-2'!E23+'SCHEDULE MJL-D12-2'!E35 -> 12235 | F26: =SUM(D26:E26) -> 60951
B27: =1+B26 -> 13 | C27: HYDRAULIC PLANT | D27: 756 | E27: 0 | F27: =SUM(D27:E27) -> 756
B28: =1+B27 -> 14 | C28: TRANSMISSION PLANT | D28: 420 | E28: 0 | F28: =SUM(D28:E28) -> 420
B29: =1+B28 -> 15 | C29: GENERAL PLANT | D29: 0 | E29: 0 | F29: =SUM(D29:E29) -> 0
B30: =1+B29 -> 16 | C30: PISA | D30: -11247 | E30: =+'SCHEDULE MJL-D12-2'!E40 -> 11247 | F30: =SUM(D30:E30) -> 0
B32: =1+B30 -> 17 | C32: TOTAL PLANT AMORTIZATION | D32: =SUM(D26:D31) -> 38645 | E32: =SUM(E26:E31) -> 23482 | F32: =SUM(F26:F31) -> 62127
C34: MISC. AMORTIZATION:
B35: =1+B32 -> 18 | C35: CALLAWAY POST OPERATIONAL | D35: 3687 | E35: 0 | F35: =SUM(D35:E35) -> 3687
B36: =B35+1 -> 19 | C36: CALLAWAY LIFE EXTEN AMORT | D36: 100 | E36: =+'SCHEDULE MJL-D12-2'!E49 -> 4 | F36: 104
B37: 20 | C37: AMORT OF FUKUSHIMA STUDY COSTS | D37: 93 | E37: 0 | F37: 93
B38: 21 | C38: SIOUX SCRUBBER CONSTRUCTION ACCOUNTING | D38: 1131 | E38: =+'SCHEDULE MJL-D12-2'!E51 -> 910 | F38: 2041
B39: 22 | C39: AMORT. OF STORM TRACKERS | D39: -887 | E39: 887 | F39: 0
B40: 23 | C40: AMORT. OF VEGETATION MANAGEMENT &
B41: 24 | C41: INFRASTRUCTURE INSPECTION REG. ASSETS | D41: -18 | E41: 18 | F41: =SUM(D41:E41) -> 0
B42: 25 | C42: AMORT. OF ENTERGY DISPUTE | D42: 62 | E42: -62 | F42: 0
B43: 26 | C43: AMORT. OF ENERGY EFFICIENCY REG ASSETS | D43: -1556 | E43: 1556 | F43: 0
B44: 27 | C44: AMORT OF LOW INCOME SURCHARGE | D44: 957 | E44: =+'SCHEDULE MJL-D12-2'!E63 -> 43 | F44: 1000
B45: 28 | C45: AMORT OF EXTENDED REGULATORY ITEMS | D45: -2500 | E45: -160 | F45: -2660
B46: 29 | C46: AMORT OF FIN 48 TRACKER | D46: 570 | E46: -570 | F46: 0
B47: 30 | C47: PISA AMORTIZATION | D47: 0 | E47: =+'SCHEDULE MJL-D12-2'!E67 -> 12339 | F47: =SUM(D47:E47) -> 12339
B48: 31 | C48: EXCESS DEFERRED TRACKER AMORTIZATION | D48: 4037 | E48: =+'SCHEDULE MJL-D12-2'!E69 -> -5572 | F48: -1535
B49: 32 | C49: MEEIA ORDERED ADJUSTMENTS | D49: 4 | E49: -4 | F49: 0
B50: 33 | C50: RESRAM ADJUSTMENTS | D50: 9537 | E50: =+'SCHEDULE MJL-D12-2'!E71 -> -9537 | F50: 0
B51: 34 | C51: CHARGE AHEAD CORRIDOR | D51: 0 | E51: =+'SCHEDULE MJL-D12-2'!E73 -> 481 | F51: 481
B52: 35 | C52: TAX DEFERRAL RATE CHANGE JAN-JULY 2019 | D52: 0 | E52: =+'SCHEDULE MJL-D12-2'!E75 -> -10786 | F52: -10786
B53: 36 | C53: COVID AAO | D53: 0 | E53: =+'SCHEDULE MJL-D12-2'!E77 -> 2459 | F53: 2459
B54: 37 | C54: TOTAL MISC AMORTIZATION | D54: =SUM(D35:D53) -> 15217 | E54: =SUM(E35:E53) -> -7994 | F54: =SUM(F35:F53) -> 7223
B56: =1+B54 -> 38 | C56: TOTAL DEPR & AMORTIZATION EXPENSE | D56: =+D23+D32+D54 -> 598144 | E56: =+E23+E32+E54 -> 167688 | F56: =+F23+F32+F54 -> 765832
B58: =1+B56 -> 39 | C58: (1) See SCHEDULE MJL-D12-2 for explanation of the pro forma adjustments.

Sheet SCHEDULE MJL-D12-2
A1: AMEREN MISSOURI
A2: ELECTRIC DEPRECIATION & AMORTIZATION EXPENSE PRO FORMA ADJUSTMENTS
A3: FOR THE TWELVE MONTHS ENDED DECEMBER 31, 2020
A4: ($000)
E7: PRO FORMA
A8: LINE | B8: ITEM NO. | C8: DESCRIPTION | E8: ADJUSTMENTS
B9: (A) | C9: (B) | E9: (C)
A11: 1 | B11: -1 | C11: To reflect the book depreciation annualized for the plant in service depreciable balances at December 31, 2020 and additions to plant in service from January 2021 through September 2021 to reflect the true-up.
A12: =1+A11 -> 2
A13: =1+A12 -> 3
A15: =1+A13 -> 4 | C15: Change in Depr. Exp. - Steam | E15: -36227
A16: =1+A15 -> 5 | C16: Change in Depr. Exp. - Nuclear | E16: 1885
A17: 6 | C17: Change in Depr. Exp. - Hydro | E17: 1343
A18: 7 | C18: Change in Depr. Exp. - Other Prod. | E18: 41077
A19: 8 | C19: Change in Depr. Exp. - Transmission | E19: 3474
A20: 9 | C20: Change in Depr. Exp. - Distribution | E20: 19630
A21: 10 | C21: Change in Depr. Exp. - General Plant | E21: 23600
A22: 11 | C22: Change in Depr. Exp. - Incentive Comp Capitalized | E22: -1394
A23: 12 | C23: Change in Amor. Exp. - Intangible Plant | E23: 12235
A24: 13 | C24: Total Increase in Depreciation Expense | E24: =SUM(E15:E23) -> 65623
A26: =1+A24 -> 14 | B26: -2 | C26: To reflect change in depreciation rates per testimony of Gannett Fleming
A28: =1+A26 -> 15 | C28: Increase in Depr. Exp. - Steam | E28: 92799
A29: =1+A28 -> 16 | C29: Increase in Depr. Exp. - Nuclear | E29: 8368
A30: 17 | C30: Increase in Depr. Exp. - Hydro | E30: 1911
A31: 18 | C31: Increase in Depr. Exp. - Other Prod. | E31: -6127
A32: 19 | C32: Increase in Depr. Exp. - Transmission | E32: -2975
A33: 20 | C33: Increase in Depr. Exp. - Distribution | E33: 5922
A34: 21 | C34: Increase in Depr. Exp. - General Plant | E34: -3426
A35: 22 | C35: Increase in Amort. Exp. - Intangible Plant | E35: 0
A36: 23 | C36: Total Increase in Depreciation Expense | E36: =SUM(E28:E35) -> 96472
A38: =1+A36 -> 24 | B38: -3 | C38: To eliminate PISA deferral
A39: =1+A38 -> 25 | C39: Depreciation | E39: 14576
A40: 26 | C40: Amortization | E40: 11247
E41: =SUM(E39:E40) -> 25823
A43: =1+A40 -> 27 | B43: -4 | C43: To reduce depreciation expense charged to O&M
A45: =1+A43 -> 28 | C45: Decrease in Depr. Exp. - Steam | E45: -138
A46: =1+A45 -> 29 | C46: Decrease in Depr. Exp. - General Plant | E46: -12098
A47: =1+A46 -> 30 | C47: Total Decrease in Depreciation Expense | E47: =SUM(E45:E46) -> -12236
A49: =1+A47 -> 31 | B49: -5 | C49: To reflect annualization of amortization of the Callaway Life Extension | E49: 4
A51: =1+A49 -> 32 | B51: -6 | C51: To eliminate the amortizations of the Sioux Scrubber Construction Accounting | E51: 910
A52: =1+A51 -> 33 | C52: contra regulatory assets.
A54: =1+A52 -> 34 | B54: -7 | C54: To eliminate the amortization relating to expiring amortizations combined and netted at Adjustment 11. | E54: 3127
A55: =1+A54 -> 35
A57: =1+A55 -> 36 | B57: -8 | C57: To eliminate the amortization of balances combined and netted in File No. ER-2019-0335. These combined and netted balances are further considered in adjustment 11. | E57: -615
A58: =A57+1 -> 37
A60: =1+A58 -> 38 | B60: -9 | C60: To eliminate the amortizations and deferrals made under the MEEIA Rider, including MEEIA ordered adjustments | E60: 1813
A61: =1+A60 -> 39
A63: =1+A61 -> 40 | B63: -10 | C63: To reflect the elimination of Low Income Surcharge from Amortizations | E63: 43
A65: =1+A63 -> 41 | B65: -11 | C65: To amortize Extended Regulatory Items | E65: -2660
A67: =1+A65 -> 42 | B67: -12 | C67: To reflect amortization of PISA | E67: 12339
A69: =1+A67 -> 43 | B69: -13 | C69: To reflect amortization of Excess Deferred Tracker | E69: -5572
A71: =1+A69 -> 44 | B71: -14 | C71: To eliminate RESRAM activity | E71: -9537
A73: =1+A71 -> 45 | B73: -15 | C73: To reflect Charge Ahead Corridor amortization | E73: 481
A75: =1+A73 -> 46 | B75: -16 | C75: To reflect amortization Tax Deferral Rate Change (1/1/19 - 7/31/19) | E75: -10786
A77: =1+A75 -> 47 | B77: -17 | C77: To reflect COVID AAO amortization | E77: 2459
A79: =1+A77 -> 48 | B79: TOTAL PRO FORMA ADJUSTMENTS: DEPRECIATION & AMORTIZATION | E79: =SUM(E24,E36,E41,E47:E78) -> 167688

Sheet SCHEDULE MJL-D13-1
B1: AMEREN MISSOURI
B2: TAXES OTHER THAN INCOME TAXES
B3: FOR THE TWELVE MONTHS ENDED DECEMBER 31, 2020
B4: ($000)
E6: TOTAL | G6: PRO FORMA
E7: PER | F7: PRO FORMA | G7: ELECTRIC
B8: LINE | C8: DESCRIPTION | E8: BOOKS | F8: ADJUSTMENTS(1) | G8: TOTALS
C9: (A) | E9: (B) | F9: (C) | G9: (D)
C11: PAYROLL TAXES
B12: 1 | C12: F.I.C.A. | D12: 165021 | E12: 21335 | F12: 944 | G12: =E12+F12 -> 22279
B13: =1+B12 -> 2 | C13: FEDERAL UNEMPLOYMENT | E13: 179 | F13: 0 | G13: =E13+F13 -> 179
B14: =1+B13 -> 3 | C14: MISSOURI UNEMPLOYMENT | E14: 0 | F14: 0 | G14: =E14+F14 -> 0
B15: =1+B14 -> 4 | C15: ILLINOIS UNEMPLOYMENT | E15: 4 | F15: 0 | G15: 4
B16: =1+B15 -> 5 | C16: IOWA UNEMPLOYMENT | E16: 1 | F16: 0
B17: =1+B16 -> 6 | C17: OTHER STATES UNEMPLOYMENT | E17: 0 | F17: 0 | G17: 0
B18: =1+B17 -> 7 | C18: ST. LOUIS EMPLOYMENT TAX | E18: 491 | F18: 0 | G18: 491
B19: =1+B18 -> 8 | C19: TOTAL PAYROLL TAXES | E19: =SUM(E12:E18) -> 22010 | F19: =SUM(F12:F18) -> 944 | G19: =SUM(G12:G18) -> 22953
C21: R.E., P.P. & CORP FRANCHISE
B22: =1+B19 -> 9 | C22: MISSOURI R.E., & P.P. | D22: 685910 | E22: 154755 | F22: -354 | G22: =SUM(E22:F22) -> 154401
B23: =1+B22 -> 10 | C23: ILLINOIS R.E., & P.P. | E23: 3787 | F23: 0 | G23: 3787
B24: 11 | C24: IOWA R.E., & P.P. | E24: 1230 | F24: 0 | G24: 1230
B25: 12 | C25: OTHER STATES R.E. & P.P. | E25: 25 | F25: 0 | G25: 25
B26: 13 | C26: R.E. TAXES CAPITALIZED | E26: -2143 | F26: 0 | G26: -2143
B27: 14 | C27: TRANSFER TO GAS | D27: 762523 | E27: -175 | F27: 0 | G27: -175
B28: 15 | C28: TRANSFER TO NON UTILITY | E28: -85 | F28: 0 | G28: -85
B29: =1+B28 -> 16 | C29: TOTAL R.E., P.P. & CORP FRANCHISE | D29: =SUM(D22:D27) -> 1448433 | E29: =SUM(E22:E28) -> 157394 | F29: =SUM(F22:F28) -> -354 | G29: 157040
B31: =1+B29 -> 17 | C31: MUNICIPAL GROSS RECEIPTS | E31: 133305 | F31: -133305 | G31: =SUM(E31:F31) -> 0
C33: MISCELLANEOUS
B34: =1+B31 -> 18 | C34: MISSOURI CORP FRANCHISE | E34: 0 | F34: 0 | G34: =E34+F34 -> 0
B35: =1+B34 -> 19 | C35: ILLINOIS CORP FRANCHISE | E35: 102 | F35: 0 | G35: =E35+F35 -> 102
B36: 20 | C36: IOWA CORP FRANCHISE | E36: 0 | F36: 0
B37: 21 | C37: FED. EXCISE TAX-HEAVY VEH. USE TAX | E37: 22 | F37: 0 | G37: =E37+F37 -> 22
B38: 22 | C38: ST. LOUIS EARNINGS | E38: 0 | F38: 0
B39: 23 | C39: MO. EXCISE - NEIL INS. PREM. | D39: 107 | E39: 0 | F39: 0 | G39: =E39+F39 -> 0
B40: 24 | C40: MISCELLANEOUS | E40: -206 | F40: 0 | G40: =E40+F40 -> -206
B41: 25 | C41: TOTAL MISCELLANEOUS | E41: =SUM(E34:E40) -> -82 | F41: =SUM(F34:F40) -> 0 | G41: =SUM(G34:G40) -> -82
B44: =1+B41 -> 26 | C44: TOTAL TAXES OTHER THAN INCOME TAXES | E44: =E19+E29+E31+E41 -> 312627 | F44: =F19+F29+F31+F41 -> -132715 | G44: =G19+G29+G31+G41 -> 179911
B46: =1+B44 -> 27 | C46: (1) See SCHEDULE MJL-D13-2 for explanation of the pro forma adjustments.

Sheet SCHEDULE MJL-D13-2
A1: AMEREN MISSOURI
A2: TAXES OTHER THAN INCOME
A3: PRO FORMA ADJUSTMENTS
A4: FOR THE TWELVE MONTHS ENDED DECEMBER 31, 2020
A5: ($000)
K7: PRO FORMA
A8: LINE | B8: ITEM NO. | C8: DESCRIPTION | K8: AMOUNT
B9: (A) | C9: (B) | K9: (C)
A11: 1 | B11: -1 | C11: Increase the F.I.C.A. taxes to reflect the pro forma wage adjustments. | K11: 944
A13: =1+A11 -> 2 | B13: -2 | C13: Eliminate the property taxes on future use plant, as this investment is excluded from rate base. | K13: -354
A14: =1+A13 -> 3
A16: =1+A14 -> 4 | B16: -3 | C16: Eliminate the gross receipts tax as they are a pass through tax. | K16: -133305
A18: =1+A16 -> 5 | C18: Total Pro Forma Adjustments to Taxes Other Than Income | K18: =SUM(K10:K17) -> -132715

Sheet SCHEDULE MJL-D14
A1: AMEREN MISSOURI
A2: TOTAL ELECTRIC INCOME TAXES AT THE PROPOSED RETURN FOR THE TWELVE MONTHS ENDED DECEMBER 31, 2020
A3: ($000)
E6: TOTAL
A7: LINE | C7: DESCRIPTION | E7: ELECTRIC
C8: (A) | D8: (B) | E8: (C)
A10: 1 | C10: TOTAL ELECTRIC NET INCOME FROM OPERATIONS | E10: 703220
C12: ADD
A13: =1+A10 -> 2 | C13: CURRENT INCOME TAXES | E13: 57679
A14: =1+A13 -> 3 | C14: DEFERRED INCOME TAXES
A15: =1+A14 -> 4 | C15: DEFERRED INCOME TAX EXPENSE | E15: -83045
A16: =1+A15 -> 5 | C16: I.T.C. AMORTIZATION | E16: -4730
A18: =1+A16 -> 6 | C18: TOTAL ELECTRIC NET INCOME BEFORE INCOME TAX | E18: =SUM(E10:E16) -> 673124
C20: ADDITIONS TO NET INCOME BEFORE INCOME TAX
A21: =1+A18 -> 7 | C21: BOOK DEPRECIATION | E21: 698616
A22: =1+A21 -> 8 | C22: BOOK DEPRECIATION CHARGED TO O&M | E22: 7701
A23: 9 | C23: INTANGIBLE AMORTIZATIONS | E23: 58817
A24: 10 | C24: HYDRAULIC AMORTIZATIONS | E24: 756
A25: 11 | C25: TRANSMISSION AMORTIZATIONS | E25: 420
A26: 12 | C26: CALLAWAY POST OPERATIONAL COSTS | E26: 3687
A27: 13 | C27: NONDEDUCTIBLE PARKING LOT EXPENSE | E27: 1171
A29: =1+A27 -> 14 | C29: TOTAL ADDITIONS | E29: =SUM(E21:E28) -> 771168
C31: SUBTRACTIONS TO NET INCOME BEFORE INCOME TAX
A32: =1+A29 -> 15 | C32: INTEREST ON DEBT (1) | E32: 183370
A33: =1+A32 -> 16 | C33: TAX STRAIGHT LINE | E33: 750060
A34: =1+A33 -> 17 | C34: PRODUCTION DEDUCTION | E34: 0
A35: =1+A34 -> 18 | C35: NUCLEAR DECOMMISSIONING | E35: 6759
A36: =1+A35 -> 19 | C36: PREFERRED DIVIDEND DEDUCTION | E36: 415
A38: =1+A36 -> 20 | C38: TOTAL SUBTRACTIONS | E38: =SUM(E32:E36) -> 940604
A40: =1+A38 -> 21 | C40: TOTAL ELECTRIC NET TAXABLE INCOME | E40: =E18+E29-E38 -> 503688
C42: FEDERAL INCOME TAX
A43: =1+A40 -> 22 | C43: NET TAXABLE INCOME | E43: =E40 -> 503688
A44: =1+A43 -> 23 | C44: DEDUCT MISSOURI INCOME TAX | E44: 19380
A45: =1+A44 -> 24 | C45: DEDUCT CITY EARNINGS TAX | E45: =+E68 -> 78
A46: =1+A45 -> 25 | C46: FEDERAL TAXABLE INCOME | E46: =E43-E44-E45 -> 484230
A48: =1+A46 -> 26 | C48: =" FEDERAL INCOME TAX" -> FEDERAL INCOME TAX | D48: 0.21 | E48: =ROUND(E46*D48,0) -> 101688
C49: LESS TAX CREDITS
A50: =1+A48 -> 27 | C50: RESEARCH CREDIT | E50: 1381
A51: =1+A50 -> 28 | C51: PRODUCTION TAX CREDIT | E51: 62086
A52: =1+A51 -> 29 | C52: TOTAL ELECTRIC FEDERAL INCOME TAX | E52: =+E48-E50-E51 -> 38221
C54: STATE INCOME TAXES
A55: =1+A52 -> 30 | C55: NET TAXABLE INCOME | E55: =E40 -> 503688
A56: =1+A55 -> 31 | C56: DEDUCT 50% OF FEDERAL INCOME TAX | E56: =ROUND(E52*0.5,0) -> 19111
A57: =1+A56 -> 32 | C57: DEDUCT CITY EARNINGS TAX | E57: =+E68 -> 78
A58: =1+A57 -> 33 | C58: MISSOURI TAXABLE INCOME | E58: =E55-E56-E57 -> 484499
A60: =1+A58 -> 34 | C60: TOTAL ELECTRIC MISSOURI INCOME TAX | D60: 0.04 | E60: =ROUND(E58*D60,0)+1 -> 19381
C62: CITY EARNINGS TAX
A63: =1+A60 -> 35 | C63: NET TAXABLE INCOME | E63: =+E40 -> 503688
A64: =1+A63 -> 36 | C64: LESS TAX ADJUSTMENTS TO INCOME | E64: -356045
A65: =1+A64 -> 37 | C65: CITY TAXABLE INCOME | E65: =+E63+E64 -> 147643
A66: =1+A65 -> 38 | C66: CITY EARNINGS TAX | D66: 0.00122 | E66: =ROUND(E65*D66,0) -> 180
A67: =1+A66 -> 39 | C67: LESS: TAX CREDIT | E67: 102
A68: =1+A67 -> 40 | C68: TOTAL ELECTRIC NET CITY EARNINGS TAX | E68: =+E66-E67 -> 78
A70: =1+A68 -> 41 | C70: TOTAL ELECTRIC CURRENT INCOME TAXES | E70: =E52+E60+E68 -> 57680
C72: DEFERRED INCOME TAXES:
A73: =1+A70 -> 42 | C73: DEFERRED INCOME TAX EXPENSE | E73: =+E15 -> -83045
A74: =1+A73 -> 43 | C74: I.T.C. AMORTIZATION | E74: =+E16 -> -4730
A75: =1+A74 -> 44 | C75: TOTAL ELECTRIC DEFERRED INCOME TAX | E75: =SUM(E73:E74) -> -87775
A77: =1+A75 -> 45 | C77: TOTAL ELECTRIC CURRENT & DEFERRED INCOME TAX | E77: =+E70+E75 -> -30095
A80: =1+A77 -> 46 | C80: (1) RATE BASE X EMBEDDED
A81: =1+A80 -> 47 | C81: COST OF DEBT. | D81: 0.01824

Sheet SCHEDULE MJL-D15
B1: AMEREN MISSOURI
B2: TOTAL ELECTRIC NET ORIGINAL COST RATE BASE AND REVENUE REQUIREMENT
B3: ='SCHEDULE MJL-D5'!A3 -> FOR THE TWELVE MONTHS ENDED DECEMBER 31, 2020
B4: ($000)
F6: TOTAL
F7: ELECTRIC
B8: LINE | C8: DESCRIPTION | D8: REFERENCE | F8: AMOUNT
C9: (A) | D9: (B) | F9: (C)
C11: A. TOTAL ELECTRIC NET ORIGINAL COST RATE BASE
B13: 1 | C13: ORIGINAL COST OF PLANT IN SERVICE | D13: SCHEDULE MJL-D1 | F13: =+'SCHEDULE MJL-D1'!G34 -> 21185206
B14: =1+B13 -> 2 | C14: LESS: RESERVES FOR DEPRECIATION & AMORTIZATION | D14: SCHEDULE MJL-D2 | F14: =+'SCHEDULE MJL-D2'!G34 -> 8805955
B15: =1+B14 -> 3 | C15: NET ORIGINAL COST OF PLANT | F15: =F13-F14 -> 12379251
B16: 4 | C16: AVERAGE FUEL AND MATERIALS AND SUPPLIES | D16: SCHEDULE MJL-D3 | F16: =+'SCHEDULE MJL-D3'!F23 -> 509137
B17: 5 | C17: AVERAGE PREPAYMENTS | D17: SCHEDULE MJL-D4 | F17: =+'SCHEDULE MJL-D4'!G22 -> 16719
B18: 6 | C18: CASH WORKING CAPITAL (LEAD/LAG) | D18: SCHEDULE MJL-D5 | F18: ='SCHEDULE MJL-D5'!J46 -> -16026
B19: 7 | C19: FEDERAL INCOME TAX CASH REQUIREMENT | D19: SCHEDULE MJL-D6 | F19: ='SCHEDULE MJL-D6'!J14 -> -95
B20: 8 | C20: STATE INCOME TAX CASH REQUIREMENT | D20: SCHEDULE MJL-D6 | F20: ='SCHEDULE MJL-D6'!J16 -> -48
B21: 9 | C21: CITY EARNINGS TAX CASH REQUIREMENT | D21: SCHEDULE MJL-D6 | F21: ='SCHEDULE MJL-D6'!J22 -> -51
B22: =1+B21 -> 10 | C22: INTEREST EXPENSE CASH REQUIREMENT | D22: SCHEDULE MJL-D6 | F22: ='SCHEDULE MJL-D6'!J24 -> -27269
B23: =1+B22 -> 11 | C23: INDIANA STATE TAX OFFSET | D23: SCHEDULE MJL-D6 | F23: ='SCHEDULE MJL-D6'!J18 -> 3
B24: =1+B23 -> 12 | C24: IOWA STATE TAX OFFSET | D24: SCHEDULE MJL-D6 | F24: ='SCHEDULE MJL-D6'!J20 -> 9
B25: =1+B24 -> 13 | C25: AVERAGE CUSTOMER ADVANCES FOR CONSTRUCTION | D25: SCHEDULE MJL-D7 | F25: ='SCHEDULE MJL-D7'!E13 -> -1696
B26: 14 | C26: AVERAGE CUSTOMER DEPOSITS | D26: SCHEDULE MJL-D7 | F26: ='SCHEDULE MJL-D7'!E16 -> -25001
B27: =1+B26 -> 15 | C27: PENSION TRACKER REG ASSET | D27: SCHEDULE MJL-D8 | F27: =+'SCHEDULE MJL-D8'!H15 -> -24996
B28: =1+B27 -> 16 | C28: OPEB TRACKER REG LIABILITY | D28: SCHEDULE MJL-D8 | F28: =+'SCHEDULE MJL-D8'!H18 -> -7201
B29: =1+B28 -> 17 | C29: PAYS REGULATORY ASSET | D29: SCHEDULE MJL-D8 | F29: =+'SCHEDULE MJL-D8'!H21 -> 3044
B30: =1+B29 -> 18 | C30: PISA REGULATORY ASSET | D30: SCHEDULE MJL-D8 | F30: =+'SCHEDULE MJL-D8'!H24 -> 242925
B31: =1+B30 -> 19 | C31: UNDER COLLECT AMORTIZATIONS IN RATE BASE | D31: SCHEDULE MJL-D8 | F31: =+'SCHEDULE MJL-D8'!H30 -> -749
B32: =1+B31 -> 20 | C32: ACCUMULATED DEFERRED INCOME TAXES | D32: SCHEDULE MJL-D9 | F32: =+'SCHEDULE MJL-D9'!H21 -> -2994782
B34: =1+B32 -> 21 | C34: TOTAL ELECTRIC NET ORIGINAL COST RATE BASE | F34: =SUM(F15:F32) -> 10053174
C36: B. TOTAL ELECTRIC REVENUE REQUIREMENT
C38: TOTAL ELECTRIC OPERATING EXPENSES:
B39: =1+B34 -> 22 | C39: PRODUCTION | D39: SCHEDULE MJL-11-1 | F39: =+'SCHEDULE MJL-D11-1'!BO22 -> 1024029
B40: =1+B39 -> 23 | C40: TRANSMISSION | D40: SCHEDULE MJL-11-1 | F40: =+'SCHEDULE MJL-D11-1'!BO27 -> 111947
B41: =1+B40 -> 24 | C41: REGIONAL MARKET EXPENSES | D41: SCHEDULE MJL-11-1 | F41: =+'SCHEDULE MJL-D11-1'!BO32 -> 7329
B42: =1+B41 -> 25 | C42: DISTRIBUTION | D42: SCHEDULE MJL-11-1 | F42: =+'SCHEDULE MJL-D11-1'!BO37 -> 141573
B43: 26 | C43: CUSTOMER ACCOUNTS | D43: SCHEDULE MJL-11-1 | F43: =+'SCHEDULE MJL-D11-1'!BO42 -> 63812
B44: 27 | C44: CUSTOMER SERVICE | D44: SCHEDULE MJL-11-1 | F44: =+'SCHEDULE MJL-D11-1'!BO47 -> 15508
B45: 28 | C45: SALES | D45: SCHEDULE MJL-11-1 | F45: =+'SCHEDULE MJL-D11-1'!BO52 -> 281
B46: 29 | C46: ADMINISTRATIVE AND GENERAL | D46: SCHEDULE MJL-11-1 | F46: =+'SCHEDULE MJL-D11-1'!BO57 -> 229176
B47: 30 | C47: TOTAL ELECTRIC OPERATING EXPENSES | F47: =SUM(F39:F46) -> 1593655
B48: 31 | C48: DEPRECIATION AND AMORTIZATION | D48: SCHEDULE MJL-12-1 | F48: ='SCHEDULE MJL-D12-1'!F56 -> 765832
B49: 32 | C49: TAXES OTHER THAN INCOME TAXES | D49: SCHEDULE MJL-13-1 | F49: ='SCHEDULE MJL-D13-1'!G44 -> 179911
C50: INCOME TAXES-BASED ON PROPOSED RATE OF RETURN
B51: =1+B49 -> 33 | C51: FEDERAL | D51: SCHEDULE MJL-14 | F51: ='SCHEDULE MJL-D14'!E52 -> 38221
B52: =1+B51 -> 34 | C52: STATE | D52: SCHEDULE MJL-14 | F52: ='SCHEDULE MJL-D14'!E60 -> 19381
B53: =1+B52 -> 35 | C53: CITY EARNINGS | D53: SCHEDULE MJL-14 | F53: ='SCHEDULE MJL-D14'!E68 -> 78
B54: =1+B53 -> 36 | C54: TOTAL INCOME TAXES | F54: =SUM(F51:F53) -> 57680
C55: DEFERRED INCOME TAXES | E55: 0
B56: =1+B54 -> 37 | C56: DEFERRED INCOME TAX EXPENSE | D56: SCHEDULE MJL-14 | F56: ='SCHEDULE MJL-D14'!E73 -> -83045
B57: =1+B56 -> 38 | C57: I.T.C. AMORTIZATION | D57: SCHEDULE MJL-14 | F57: ='SCHEDULE MJL-D14'!E74 -> -4730
B58: =1+B57 -> 39 | C58: TOTAL DEFERRED INCOME TAXES | F58: =SUM(F56:F57) -> -87775
B60: =1+B58 -> 40 | C60: ="RETURN (RATE BASE * "&TEXT(D60,"0.000%")&")" -> RETURN (RATE BASE * 6.995%) | D60: 0.06995 | F60: =ROUND(D60*F34,0) -> 703220
B62: =1+B60 -> 41 | C62: TOTAL ELECTRIC REVENUE REQUIREMENT | F62: =+F47+F48+F49+F54+F58+F60 -> 3212523

Sheet SCHEDULE MJL-D16
A1: AMEREN MISSOURI
A2: ="INCREASE REQUIRED TO PRODUCE "& TEXT('SCHEDULE MJL-D15'!D60,"0.000%") &" RETURN ON " -> INCREASE REQUIRED TO PRODUCE 6.995% RETURN ON
A3: TOTAL ELECTRIC NET ORIGINAL COST RATE BASE
A4: ='SCHEDULE MJL-D5'!A3 -> FOR THE TWELVE MONTHS ENDED DECEMBER 31, 2020
E8: TOTAL
E9: ELECTRIC
A10: LINE | C10: DESCRIPTION | E10: AMOUNT
C11: (A) | E11: (B)
A13: 1 | C13: TOTAL ELECTRIC NET ORIGINAL COST RATE BASE | E13: ='SCHEDULE MJL-D15'!F34 -> 10053174
C15: TOTAL ELECTRIC REVENUE REQUIREMENT:
A16: =1+A13 -> 2 | C16: ="RETURN AT PROPOSED RATE ("&TEXT('SCHEDULE MJL-D15'!D60,"0.000%")&")" -> RETURN AT PROPOSED RATE (6.995%) | E16: ='SCHEDULE MJL-D15'!F60 -> 703220
A17: =1+A16 -> 3 | C17: OPERATING AND MAINTENANCE EXPENSES | E17: ='SCHEDULE MJL-D15'!F47 -> 1593655
A18: 4 | C18: DEPRECIATION AND AMORTIZATION | E18: ='SCHEDULE MJL-D15'!F48 -> 765832
A19: 5 | C19: TAXES OTHER THAN INCOME | E19: ='SCHEDULE MJL-D15'!F49 -> 179911
A20: 6 | C20: FEDERAL AND STATE INCOME AND CITY EARNINGS TAXES AT CLAIMED RETURN | E20: ='SCHEDULE MJL-D15'!F51+'SCHEDULE MJL-D15'!F52+'SCHEDULE MJL-D15'!F53 -> 57680
A21: 7 | C21: DEFERRED INCOME TAXES | E21: ='SCHEDULE MJL-D15'!F58 -> -87775
A22: 8 | C22: TOTAL ELECTRIC REVENUE REQUIREMENT | E22: =SUM(E16:E21) -> 3212523
A25: =1+A22 -> 9 | C25: PRO FORMA TOTAL ELECTRIC OPERATING REVENUE AT PRESENT RATES | E25: =+'SCHEDULE MJL-D10'!F26 -> 2913055
A27: =1+A25 -> 10 | C27: DEFICIENCY IN TOTAL ELECTRIC OPERATING REVENUE | E27: =E22-E25 -> 299468
F30: =+UPPER(C30) -> 

Sheet SCHEDULE MJL-D17
A1: AMEREN MISSOURI
A2: CALCULATION OF NET BASE ENERGY COST (BF)
A3: FOR THE TWELVE MONTHS ENDED DECEMBER 31, 2020
A9: LINE | C9: DESCRIPTION | E9: TOTAL | G9: SUMMER | I9: WINTER | K9: WINTER-2
C10: (A) | E10: (B) | G10: (D) | I10: (E) | K10: (F)
B12: A | C12: FUEL & PURCHASED POWER COSTS
C13: BASE LOAD
A14: =1 -> 1 | C14: FUEL FOR LOAD | E14: =G14+I14 -> 380571000 | G14: 133122000 | I14: 247449000 | K14: =E14-G14-I14 -> 0
A15: =1+A14 -> 2 | C15: FLY ASH (1) | E15: =G15+I15 -> -2164297.6 | G15: -750101 | I15: -1414196.6 | K15: 0
A16: =1+A15 -> 3 | C16: FIXED GAS SUPPLY COSTS FOR LOAD (2) | E16: =G16+I16 -> 6783734.57 | G16: 2435168 | I16: 4348566.57 | K16: 0
A17: 4 | C17: FUEL ADDITIVES (2) | E17: =G17+I17 -> 5018394.56 | G17: 1801461 | I17: 3216933.56 | K17: 0
A18: 5 | C18: PURCHASED POWER FOR LOAD | E18: =G18+I18 -> 20100000 | G18: 6303000 | I18: 13797000 | K18: 0
A20: =1+A18 -> 6 | C20: TOTAL BASE LOAD | E20: =SUM(E14:E18) -> 410308831.5 | G20: =SUM(G14:G18) -> 142911528 | I20: =SUM(I14:I18) -> 267397303.5 | K20: =SUM(K14:K18) -> 0
C22: OSS
A23: 7 | C23: FUEL FOR LOAD | E23: =G23+I23 -> 211493000 | G23: 78082000 | I23: 133411000
A24: 8 | C24: FLY ASH (1) | E24: =G24+I24 -> -1202756 | G24: -416850 | I24: -785906
A25: 9 | C25: FIXED GAS SUPPLY COSTS FOR LOAD (2) | E25: =G25+I25 -> 3769894 | G25: 1353285 | I25: 2416609
A26: 10 | C26: FUEL ADDITIVES (2) | E26: =G26+I26 -> 2788849 | G26: 1001118 | I26: 1787731
A27: 11 | C27: PURCHASED POWER FOR LOAD | E27: =G27+I27 -> 0 | G27: 0 | I27: 0
A29: 12 | C29: TOTAL OSS | E29: =SUM(E23:E27) -> 216848987 | G29: =SUM(G23:G27) -> 80019553 | I29: =SUM(I23:I27) -> 136829434
A31: 13 | C31: TOTAL FUEL AND PURCHASED POWER | E31: =E20+E29 -> 627157818.5 | G31: =G20+G29 -> 222931081 | I31: =I20+I29 -> 404226737.5
B34: B | C34: TRANSMISSION COSTS AND REVENUES
A35: 14 | C35: TRANSMISSION BY OTHERS (ACCT. 565 @1.87%) (2) | E35: =G35+I35 -> 1625254.688 | G35: 583466 | I35: 1041788.688
A36: 15 | C36: TRANMISSION REVENUES (ACC 456.1) (2) | E36: =G36+I36 -> -495886.1818 | G36: -178023 | I36: -317863.1818
A38: 16 | C38: TOTAL TRANSMISSION COSTS AND REVENUES | E38: =SUM(E35:E36) -> 1129368.506 | G38: =SUM(G35:G36) -> 405443 | I38: =SUM(I35:I36) -> 723925.5059
B41: C | C41: ADDITIONAL FUEL & PP COSTS
A42: 17 | C42: MISO DAY 2 EXCLUDING ADMIN (ACCT 555) (2) | E42: =G42+I42 -> 25989827 | G42: 9329609 | I42: 16660218 | K42: =E42-G42-I42 -> 0
A43: 18 | C43: COMMON BOUNDARY (2) | E43: 80705 | G43: 28971 | I43: 51734
A44: 19 | C44: CAPACITY EXPENSE (2) | E44: 16814666 | G44: 6035987 | I44: 10778679 | K44: =E44-G44-I44 -> 0
A45: 20 | C45: ANCILLARY SERVICES PURCHASED (ACCT. 555) (2) | E45: 2086971 | G45: 749223 | I45: 1337748 | K45: 0
A46: 21 | C46: PJM EXCLUDING ADMIN (ACCT. 555) (2) | E46: 0 | G46: 0 | I46: 0 | K46: 0
A47: 22 | C47: REPLACEMENT POWER INSURANCE (ACC 925) (2) | E47: 638206.34 | G47: 229116 | I47: 409090.34
A49: 23 | C49: TOTAL ADDITIONAL FUEL & PP COSTS | E49: =SUM(E42:E47) -> 45610375.34 | G49: =SUM(G42:G47) -> 16372906 | I49: =SUM(I42:I47) -> 29237469.34 | K49: =SUM(K42:K46) -> 0
B52: D | C52: SALES
A53: =1+A49 -> 24 | C53: OFF-SYSTEM ENERGY SALES REVENUES (ACCT. 447) | E53: =G53+I53 -> 282149000 | G53: 90655000 | I53: 191494000 | K53: =E53-G53-I53 -> 0
A54: =1+A53 -> 25 | C54: MAKE WHOLE PAYMENT MARGINS (ACCT 447) (2) | E54: =G54+I54 -> 1434768 | G54: 515041 | I54: 919727 | K54: 0
A55: =1+A54 -> 26 | C55: CAPACITY SALES REVENUES (ACCT. 447) (2) | E55: 23804324 | G55: 8545076 | I55: 15259248 | K55: 0
A56: =1+A55 -> 27 | C56: BILATERAL ENERGY SALES MARGINS (447) (2) | E56: 1157529.478 | G56: 415520 | I56: 742009.4776
A57: =1+A56 -> 28 | C57: FINANCIAL SWAPS (ACCT 447) (2) | E57: 6421602.065 | G57: 2305173 | I57: 4116429.065 | K57: 0
A58: =1+A57 -> 29 | C58: ANCILLARY SERVICES REVENUE (ACCT. 447) (2) | E58: 5327926 | G58: 1912574 | I58: 3415352 | K58: 0
A60: =A58+1 -> 30 | C60: TOTAL SALES | E60: =SUM(E53:E59) -> 320295149.5 | G60: =SUM(G53:G59) -> 104348384 | I60: =SUM(I53:I59) -> 215946765.5 | K60: =SUM(K53:K59) -> 0
B62: E | C62: OTHER ADJUSTMENTS
A63: =A60+1 -> 31 | C63: REAL-TIME LOAD AND GENERATION DEVIATION (2) | E63: =G63+I63 -> 5004650 | G63: 1796527 | I63: 3208123
A65: =A63+1 -> 32 | C65: TOTAL OTHER ADJUSTMENTS | E65: =E63 -> 5004650 | G65: =G63 -> 1796527 | I65: =I63 -> 3208123
A67: =A65+1 -> 33 | B67: A + B + C - D - E | C67: NET BASE ENERGY COSTS | E67: =E31+E38+E49-E60-E65 -> 348597762.8 | G67: =G31+G38+G49-G60-G65 -> 133564519 | I67: =I31+I38+I49-I60-I65 -> 215033243.8 | K67: =K20+K49-K60 -> 0
C69: LOAD FORECAST (DELIVERED MWH) USED IN PROSYM RUN | E69: =SUM(#REF!) -> 
C71: NET BASE FUEL COSTS ($ PER MWH) | E71: =E67*1000/E69 -> 
C74: LOAD FORECAST AT GENERATION LEVEL* | E74: =SUM(#REF!) -> 
C75: * EXCLUDES TRANSMISSION LINE LOSSES
C77: NET BASE FUEL COSTS ($ PER MWH) AT GENERATION LEVEL | E77: =+E67*1000/E74 -> 
A79: =1+A67 -> 34 | C79: LOAD AT MISO CP NODE AMMO.UE (KWH) | E79: =G79+I79 -> 3.238948812e+10 | G79: 11627000000 | I79: 2.076248812e+10 | K79: =E79-G79-I79 -> 0
A81: =1+A79 -> 35 | C81: BASE FACTOR (BF) ($ PER MWH) | E81: =E67/E79*1000 -> 10.76268206 | G81: =G67/G79*1000 -> 11.48744465 | I81: =I67/I79*1000 -> 10.35681478 | K81: =K67/K79*1000 -> 
A83: =1+A81 -> 36 | C83: BASE FACTOR (BF) (CENTS PER KWH) | E83: =E81/10 -> 1.076268206 | G83: =G81/10 -> 1.148744465 | I83: =I81/10 -> 1.035681478 | K83: =K81/10 -> 
A85: =1+A83 -> 37 | B85: MONTHS IN EACH PERIOD:
A86: =1+A85 -> 38 | C86: SUMMER: JUNE THROUGH SEPTEMBER
A87: 39 | C87: WINTER: OCTOBER THROUGH MAY
A89: =A87+1 -> 40 | B89: -1 | C89: ALLOCATED BETWEEN SUMMER AND WINTERS BASED ON COAL FROM FUEL MODEL.
A90: =1+A89 -> 41 | B90: -2 | C90: ALLOCATED BETWEEN SUMMER AND WINTERS BASED ON LOAD.

Sheet SCHEDULE MJL-D18
A1: Ameren Missouri
A2: Cash Working Capital Factors
A3: FOR THE TWELVE MONTHS ENDED DECEMBER 31, 2020
A5: Line No. | C5: Description | E5: Revenue Lag | G5: Expense Lead | I5: Net Lag | K5: CWC Factor
C6: (A) | E6: (B) | G6: (C) | I6: (D) | K6: (E)
A8: 1 | C8: Pensions & Benefits | E8: 37.0914753 | G8: -18.37377728 | I8: =E8+G8 -> 18.71769802 | K8: =I8/365 -> 0.05128136444
A9: =A8+1 -> 2 | C9: Payroll and Withholdings | E9: 37.0914753 | G9: -11.65536708 | I9: 25.43610822 | K9: =I9/365 -> 0.06968796773
A10: 3 | C10: Payroll Taxes | E10: 37.0914753 | G10: -9.378521517 | I10: 27.71295378 | K10: 0.07592590076
A11: 4 | C11: Other Operations and Maintenance Expenses | E11: 37.0914753 | G11: -42.25037055 | I11: -5.158895253 | K11: -0.0141339596
A12: 5 | C12: Property/Real Estate Taxes | E12: 37.0914753 | G12: -183 | I12: -145.9085247 | K12: -0.3997493828
A13: 6 | C13: Missouri Sales Tax | E13: 37.0914753 | G13: -9.312952733 | I13: 27.77852256 | K13: 0.07610554127
A14: 7 | C14: Missouri and Iowa Use Tax | E14: 37.0914753 | G14: -76.2479442 | I14: -39.15646891 | K14: -0.107277997
A15: 8 | C15: Illinois Use Tax | E15: 37.0914753 | G15: -35.7816893 | I15: =E15+G15 -> 1.309785993 | K15: =I15/365 -> 0.003588454775
A16: 9 | C16: Gross Receipts Taxes | E16: 24.35063707 | G16: -26.98580175 | I16: -2.63516468 | K16: -0.00721962926
A17: 10 | C17: Federal Income Tax | E17: 37.0914753 | G17: -38 | I17: -0.9085247049 | K17: -0.00248910878
A18: 11 | C18: State Income Tax | E18: 37.0914753 | G18: -38 | I18: -0.9085247049 | K18: -0.00248910878
A19: 12 | C19: St Louis Corporate Earnings Tax | E19: 37.0914753 | G19: -274.5 | I19: =E19+G19 -> -237.4085247 | K19: =I19/365 -> -0.6504343143
A20: 13 | C20: Fuel - Nuclear | E20: 37.0914753 | G20: -15.20833333 | I20: =E20+G20 -> 21.88314196 | K20: =I20/365 -> 0.05995381359
A21: 14 | C21: Fuel - Coal | E21: 37.0914753 | G21: -14.43339818 | I21: =E21+G21 -> 22.65807711 | K21: =I21/365 -> 0.06207692359
A22: 15 | C22: Fuel - Oil | E22: 37.0914753 | G22: -14.68753918 | I22: =E22+G22 -> 22.40393611 | K22: =I22/365 -> 0.06138064688
A23: 16 | C23: Fuel - Gas | E23: 37.0914753 | G23: -40.72113375 | I23: =E23+G23 -> -3.62965845 | K23: =I23/365 -> -0.009944269727
A24: 17 | C24: Interest Expense | E24: 37.0914753 | G24: -91.36877139 | I24: -54.2772961 | K24: -0.1487049208
A25: 18 | C25: Uncollectible Expense | E25: 37.0914753 | G25: =-E25 -> -37.0914753 | I25: 0 | K25: 0
A26: 19 | C26: Purchased Power | E26: 37.0914753 | G26: -18.10028377 | I26: 18.99119152 | K26: 0.05203066171
A27: 20 | C27: Decommissioning Fees | E27: 37.0914753 | G27: -69.5 | I27: -32.4085247 | K27: -0.08879047864
A28: 21 | C28: Incentive Compensation | E28: 37.0914753 | G28: -252.877447 | I28: -215.7859717 | K28: -0.5911944431
A29: 22 | C29: Fed Excise Heavy Use Tax | E29: 37.0914753 | G29: 125.5736117 | I29: 162.665087 | K29: 0.4456577726
A30: 23 | C30: Self Procured Insurance Tax | E30: 37.0914753 | G30: -241.5 | I30: -204.4085247 | K30: -0.5600233554
A31: 24 | C31: Ohio Commercial Activity Tax | E31: 37.0914753 | G31: 50 | I31: 87.0914753 | K31: 0.2386067816
A32: 25 | C32: Corporate Franchise Tax | E32: 37.0914753 | G32: -233.192007 | I32: -196.1005317 | K32: -0.5372617307
A33: 26 | C33: State of Indiana Corporate Income Tax | E33: 37.0914753 | G33: -14 | I33: 23.0914753 | K33: 0.06326431588
A34: 27 | C34: State of Iowa Corporate Income Tax | E34: 37.0914753 | G34: 77 | I34: 114.0914753 | K34: 0.3125793844
